Workbook

Sheet Mensaje
C10: ACTIVAR MACRO PARA ACCEDER AL CONTENIDO

Sheet Global Financial Model (hidden)
B4: Legenda | C4: Dato de entrada
C5: Celda llave
C6: Error
C7: Dato calculado
B10: DATOS
B11: Inversion inicial (USD 2015) | C11: 118700824.5
B12: Inversion inicial con inflacion (USD valor nominal) | C12: 122903696.9
B13: Inflacion sobre inversion inicial (USD valor nominal) | C13: 4202872.416
B14: Locales comerciales (m2) | C14: 500
B15: Alquiler mensual de locales comerciales ($/m2) | C15: 20
B16: Depreciation de activos
B17: Duracion de vida infinida | C17: 0.1989298547 | D17: de los activos
B18: Duracion de vida de 50 años | C18: 0.2867851959 | D18: de los activos
B19: Duracion de vida de 40 años | C19: 0.4538304931 | D19: de los activos
B20: Duracion de vida de 15 años | C20: 0.09428913946 | D20: de los activos
B21: Duracion de vida de 10 años | C21: 0.03421485396 | D21: de los activos
B22: Duracion de vida de 5 años | C22: 0.005872769876 | D22: de los activos
B23: Renta concesional | C23: 0 | D23: de la Utilitad neta de operacion antes de impuestos
B24: Impuesto a la renta | C24: 0.35 | D24: Impuesto a la renta para sociedades en Ecuador
B25: Hipotesis general de Inflacion 2019 - 2050 | C25: 0.02
B26: Tasa de actualizacion | C26: 0.13
C29: Tarifa (USD 2019)
C30: 1,00$
B31: TRI 30 años | C31: =AJ104 -> -0.01149125585
B32: VAN 30 años | C32: =AJ116 -> -82317857.09
C35: Tarifa de 1,00$ (USD 2019)
C36: 2020 | D36: 2025 | E36: 2030 | F36: 2035 | G36: 2040 | H36: 2045 | I36: 2050
B37: Ratio de cobertura (Ingresos / Egresos) de la operacion | C37: =H112 -> 1.437558775 | D37: =M112 -> 1.479378234 | E37: =R112 -> 1.553929934 | F37: =W112 -> 1.733287751 | G37: =AB112 -> 1.917307821 | H37: =AG112 -> 1.9186103 | I37: =AL112 -> 1.846062999
B38: Margen neta de la operacion | C38: =H113 -> 0.4375587747 | D38: =M113 -> 0.4793782337 | E38: =R113 -> 0.5539299335 | F38: =W113 -> 0.7332877513 | G38: =AB113 -> 0.9173078215 | H38: =AG113 -> 0.9186103 | I38: =AL113 -> 0.8460629985
B45: Año | C45: 2015 | D45: 2016 | E45: 2017 | F45: 2018 | G45: 2019 | H45: 2020 | I45: 2021 | J45: 2022 | K45: 2023 | L45: 2024 | M45: 2025 | N45: 2026 | O45: 2027 | P45: 2028 | Q45: 2029 | R45: 2030 | S45: 2031 | T45: 2032 | U45: 2033 | V45: 2034 | W45: 2035 | X45: 2036 | Y45: 2037 | Z45: 2038 | AA45: 2039 | AB45: 2040 | AC45: 2041 | AD45: 2042 | AE45: 2043 | AF45: 2044 | AG45: 2045 | AH45: 2046 | AI45: 2047 | AJ45: 2048 | AK45: 2049 | AL45: 2050 | AM45: 2051 | AN45: 2052 | AO45: 2053 | AP45: 2054 | AQ45: 2055 | AR45: 2056 | AS45: 2057 | AT45: 2058
C46: Y0 | D46: Y1 | E46: Y2 | F46: Y3 | G46: Y4 | H46: Y5 | I46: Y6 | J46: Y7 | K46: Y8 | L46: Y9 | M46: Y10 | N46: Y11 | O46: Y12 | P46: Y13 | Q46: Y14 | R46: Y15 | S46: Y16 | T46: Y17 | U46: Y18 | V46: Y19 | W46: Y20 | X46: Y21 | Y46: Y22 | Z46: Y23 | AA46: Y24 | AB46: Y25 | AC46: Y26 | AD46: Y27 | AE46: Y28 | AF46: Y29 | AG46: Y30 | AH46: Y31 | AI46: Y32 | AJ46: Y33 | AK46: Y34 | AL46: Y35 | AM46: Y36 | AN46: Y37 | AO46: Y38 | AP46: Y39 | AQ46: Y40 | AR46: Y41 | AS46: Y42 | AT46: Y43
C47: 0 | D47: 1 | E47: 2 | F47: 3 | G47: 4 | H47: 5 | I47: 6 | J47: 7 | K47: 8 | L47: 9 | M47: 10 | N47: 11 | O47: 12 | P47: 13 | Q47: 14 | R47: 15 | S47: 16 | T47: 17 | U47: 18 | V47: 19 | W47: 20 | X47: 21 | Y47: 22 | Z47: 23 | AA47: 24 | AB47: 25 | AC47: 26 | AD47: 27 | AE47: 28 | AF47: 29 | AG47: 30 | AH47: 31 | AI47: 32 | AJ47: 33 | AK47: 34 | AL47: 35 | AM47: 36 | AN47: 37 | AO47: 38 | AP47: 39 | AQ47: 40 | AR47: 41 | AS47: 42 | AT47: 43
C48: 0 | D48: 0 | E48: 0 | F48: 0 | G48: 1 | H48: 2 | I48: 3 | J48: 4 | K48: 5 | L48: 6 | M48: 7 | N48: 8 | O48: 9 | P48: 10 | Q48: 11 | R48: 12 | S48: 13 | T48: 14 | U48: 15 | V48: 16 | W48: 17 | X48: 18 | Y48: 19 | Z48: 20 | AA48: 21 | AB48: 22 | AC48: 23 | AD48: 24 | AE48: 25 | AF48: 26 | AG48: 27 | AH48: 28 | AI48: 29 | AJ48: 30 | AK48: 31 | AL48: 32 | AM48: 33 | AN48: 34 | AO48: 35 | AP48: 36 | AQ48: 37 | AR48: 38 | AS48: 39 | AT48: 40
B50: DATOS PROYECTADOS
B51: Costos anuales de O&M | C51: 0 | D51: 0 | E51: 0 | F51: 0 | G51: 3476732.433 | H51: 3328674.036 | I51: 3655735.643 | J51: 3742044.432 | K51: 7795071.625 | L51: 3920950.033 | M51: 4013650.228 | N51: 4108586.437 | O51: 4205813.642 | P51: 8661534.572 | Q51: 4407367.891 | R51: 4511811.926 | S51: 4618781.011 | T51: 4728337.374 | U51: 9626860.809 | V51: 4955468.687 | W51: 5073176.06 | X51: 5193735.637 | Y51: 5317217.862 | Z51: 10702661.51 | AA51: 5573240.934 | AB51: 5705931.709 | AC51: 5841845.08 | AD51: 5981060.813 | AE51: 11901954.04 | AF51: 6269728.534 | AG51: 6419350.311 | AH51: 6572614.137 | AI51: 6729610.357 | AJ51: 13239337.64 | AK51: 7055172.824 | AL51: 7223931.404 | AM51: 7396807.166 | AN51: 7573902.462 | AO51: 14731191.81 | AP51: 7941174.085 | AQ51: 8131568.337 | AR51: 8326618.111 | AS51: 8526439.393 | AT51: 16395900.19
B52: Trafico anual | C52: 0 | D52: 0 | E52: 0 | F52: 0 | G52: 7160265 | H52: 9547020 | I52: 9737280 | J52: 9927540 | K52: 10117800 | L52: 10308060 | M52: 10498320 | N52: 10692528 | O52: 10886736 | P52: 11080944 | Q52: 11275152 | R52: 11469360 | S52: 11736816 | T52: 12004272 | U52: 12271728 | V52: 12539184 | W52: 12806640 | X52: 13195602 | Y52: 13584564 | Z52: 13973526 | AA52: 14362488 | AB52: 14751450 | AC52: 14751450 | AD52: 14751450 | AE52: 14751450 | AF52: 14751450 | AG52: 14751450 | AH52: 14751450 | AI52: 14751450 | AJ52: 14751450 | AK52: 14751450 | AL52: 14751450 | AM52: 14751450 | AN52: 14751450 | AO52: 14751450 | AP52: 14751450 | AQ52: 14751450 | AR52: 14751450 | AS52: 14751450 | AT52: 14751450
B53: Ingresos de pasajeros (valor actualizado) | C53: 0 | D53: 0 | E53: 0 | F53: 0 | G53: 3497073.426 | H53: 4662764.568 | I53: 4972071.336 | J53: 5069222.315 | K53: 5375094.776 | L53: 5476170.656 | M53: 5802567.295 | N53: 5909908.754 | O53: 6260347.122 | P53: 6372025.177 | Q53: 6745644.841 | R53: 6861834.689 | S53: 7305529.624 | T53: 7472006.438 | U53: 7947077.975 | V53: 8120280.452 | W53: 8628539.639 | X53: 8890604.79 | Y53: 9522437.805 | Z53: 9795090.388 | AA53: 10474479.79 | AB53: 10758147.53 | AC53: 11192776.69 | AD53: 11192776.69 | AE53: 11644964.87 | AF53: 11644964.87 | AG53: 12115421.45 | AH53: 12115421.45 | AI53: 12604884.48 | AJ53: 12604884.48 | AK53: 13114121.81 | AL53: 13114121.81 | AM53: 13643932.33 | AN53: 13643932.33 | AO53: 14195147.2 | AP53: 14195147.2 | AQ53: 14768631.15 | AR53: 14768631.15 | AS53: 15365283.84 | AT53: 15365283.84
B54: Alquiler de areas comerciales (valor actualizado) | C54: 0 | D54: 0 | E54: 0 | F54: 0 | G54: =$C$14*$C$15*12 -> 120000 | H54: =$G$54*((1+$C$25)^G48) -> 122400 | I54: 124848 | J54: 127344.96 | K54: 129891.8592 | L54: 132489.6964 | M54: 135139.4903 | N54: 137842.2801 | O54: 140599.1257 | P54: 143411.1082 | Q54: 146279.3304 | R54: 149204.917 | S54: 152189.0153 | T54: 155232.7957 | U54: 158337.4516 | V54: 161504.2006 | W54: 164734.2846 | X54: 168028.9703 | Y54: 171389.5497 | Z54: 174817.3407 | AA54: 178313.6875 | AB54: 181879.9613 | AC54: 185517.5605 | AD54: 189227.9117 | AE54: 193012.4699 | AF54: 196872.7193 | AG54: 200810.1737 | AH54: 204826.3772 | AI54: 208922.9047 | AJ54: 213101.3628 | AK54: 217363.3901 | AL54: 221710.6579 | AM54: 226144.8711 | AN54: 230667.7685 | AO54: 235281.1238 | AP54: 239986.7463 | AQ54: 244786.4812 | AR54: 249682.2109 | AS54: 254675.8551 | AT54: 259769.3722
B56: Activos iniciales - Depreciacion 50 años | C56: 0 | D56: 0 | E56: 0 | F56: 0 | G56: =SUM($C$96:$F$96)*$C$18/50 -> -704939.2159 | H56: -704939.2159 | I56: -704939.2159 | J56: -704939.2159 | K56: -704939.2159 | L56: -704939.2159 | M56: -704939.2159 | N56: -704939.2159 | O56: -704939.2159 | P56: -704939.2159 | Q56: -704939.2159 | R56: -704939.2159 | S56: -704939.2159 | T56: -704939.2159 | U56: -704939.2159 | V56: -704939.2159 | W56: -704939.2159 | X56: -704939.2159 | Y56: -704939.2159 | Z56: -704939.2159 | AA56: -704939.2159 | AB56: -704939.2159 | AC56: -704939.2159 | AD56: -704939.2159 | AE56: -704939.2159 | AF56: -704939.2159 | AG56: -704939.2159 | AH56: -704939.2159 | AI56: -704939.2159 | AJ56: -704939.2159 | AK56: -704939.2159 | AL56: -704939.2159 | AM56: -704939.2159 | AN56: -704939.2159 | AO56: -704939.2159 | AP56: -704939.2159 | AQ56: -704939.2159 | AR56: -704939.2159 | AS56: -704939.2159 | AT56: -704939.2159
B57: Activos iniciales - Depreciacion 40 años | C57: 0 | D57: 0 | E57: 0 | F57: 0 | G57: =SUM($C$96:$F$96)*$C$19/40 -> -1394436.134 | H57: -1394436.134 | I57: -1394436.134 | J57: -1394436.134 | K57: -1394436.134 | L57: -1394436.134 | M57: -1394436.134 | N57: -1394436.134 | O57: -1394436.134 | P57: -1394436.134 | Q57: -1394436.134 | R57: -1394436.134 | S57: -1394436.134 | T57: -1394436.134 | U57: -1394436.134 | V57: -1394436.134 | W57: -1394436.134 | X57: -1394436.134 | Y57: -1394436.134 | Z57: -1394436.134 | AA57: -1394436.134 | AB57: -1394436.134 | AC57: -1394436.134 | AD57: -1394436.134 | AE57: -1394436.134 | AF57: -1394436.134 | AG57: -1394436.134 | AH57: -1394436.134 | AI57: -1394436.134 | AJ57: -1394436.134 | AK57: -1394436.134 | AL57: -1394436.134 | AM57: -1394436.134 | AN57: -1394436.134 | AO57: -1394436.134 | AP57: -1394436.134 | AQ57: -1394436.134 | AR57: -1394436.134 | AS57: -1394436.134 | AT57: -1394436.134
B58: Activos iniciales - Depreciacion 15 años | C58: 0 | D58: 0 | E58: 0 | F58: 0 | G58: =SUM($C$96:$F$96)*$C$20/15 -> -772565.5879 | H58: -772565.5879 | I58: -772565.5879 | J58: -772565.5879 | K58: -772565.5879 | L58: -772565.5879 | M58: -772565.5879 | N58: -772565.5879 | O58: -772565.5879 | P58: -772565.5879 | Q58: -772565.5879 | R58: -772565.5879 | S58: -772565.5879 | T58: -772565.5879 | U58: -772565.5879 | V58: 0 | W58: 0 | X58: 0 | Y58: 0 | Z58: 0 | AA58: 0 | AB58: 0 | AC58: 0 | AD58: 0 | AE58: 0 | AF58: 0 | AG58: 0 | AH58: 0 | AI58: 0 | AJ58: 0 | AK58: 0 | AL58: 0 | AM58: 0 | AN58: 0 | AO58: 0 | AP58: 0 | AQ58: 0 | AR58: 0 | AS58: 0 | AT58: 0
B59: Activos iniciales - Depreciacion 10 años | C59: 0 | D59: 0 | E59: 0 | F59: 0 | G59: =SUM($C$96:$F$96)*$C$21/10 -> -420513.2041 | H59: -420513.2041 | I59: -420513.2041 | J59: -420513.2041 | K59: -420513.2041 | L59: -420513.2041 | M59: -420513.2041 | N59: -420513.2041 | O59: -420513.2041 | P59: -420513.2041 | Q59: 0 | R59: 0 | S59: 0 | T59: 0 | U59: 0 | V59: 0 | W59: 0 | X59: 0 | Y59: 0 | Z59: 0 | AA59: 0 | AB59: 0 | AC59: 0 | AD59: 0 | AE59: 0 | AF59: 0 | AG59: 0 | AH59: 0 | AI59: 0 | AJ59: 0 | AK59: 0 | AL59: 0 | AM59: 0 | AN59: 0 | AO59: 0 | AP59: 0 | AQ59: 0 | AR59: 0 | AS59: 0 | AT59: 0
B60: Activos iniciales - Depreciacion 5 años | C60: 0 | D60: 0 | E60: 0 | F60: 0 | G60: =SUM($C$96:$F$96)*$C$22/5 -> -144357.0258 | H60: =SUM($C$96:$F$96)*$C$22/5 -> -144357.0258 | I60: =SUM($C$96:$F$96)*$C$22/5 -> -144357.0258 | J60: =SUM($C$96:$F$96)*$C$22/5 -> -144357.0258 | K60: =SUM($C$96:$F$96)*$C$22/5 -> -144357.0258 | L60: 0 | M60: 0 | N60: 0 | O60: 0 | P60: 0 | Q60: 0 | R60: 0 | S60: 0 | T60: 0 | U60: 0 | V60: 0 | W60: 0 | X60: 0 | Y60: 0 | Z60: 0 | AA60: 0 | AB60: 0 | AC60: 0 | AD60: 0 | AE60: 0 | AF60: 0 | AG60: 0 | AH60: 0 | AI60: 0 | AJ60: 0 | AK60: 0 | AL60: 0 | AM60: 0 | AN60: 0 | AO60: 0 | AP60: 0 | AQ60: 0 | AR60: 0 | AS60: 0 | AT60: 0
B61: Activos iniciales - Valor residual | C61: 0 | D61: 0 | E61: 0 | F61: 0 | G61: =-(SUM(C96:F96))+SUM(G56:G60) -> 119466885.7 | H61: =G61+SUM(H56:H60) -> 116030074.6 | I61: =H61+SUM(I56:I60) -> 112593263.4 | J61: 109156452.2 | K61: 105719641.1 | L61: 102427186.9 | M61: 99134732.79 | N61: 95842278.64 | O61: 92549824.5 | P61: 89257370.36 | Q61: 86385429.42 | R61: 83513488.48 | S61: 80641547.55 | T61: 77769606.61 | U61: 74897665.67 | V61: 72798290.32 | W61: 70698914.97 | X61: 68599539.62 | Y61: 66500164.27 | Z61: 64400788.92 | AA61: 62301413.57 | AB61: 60202038.22 | AC61: 58102662.87 | AD61: 56003287.52 | AE61: 53903912.17 | AF61: 51804536.82 | AG61: 49705161.47 | AH61: 47605786.12 | AI61: 45506410.77 | AJ61: 43407035.42 | AK61: 41307660.07 | AL61: 39208284.72 | AM61: 37108909.37 | AN61: 35009534.02 | AO61: 32910158.67 | AP61: 30810783.32 | AQ61: 28711407.97 | AR61: 26612032.61 | AS61: 24512657.26 | AT61: 22413281.91
B62: Activos nuevos 1 - Depreciacion 10 años | C62: 0 | D62: 0 | E62: 0 | F62: 0 | G62: 0 | H62: 0 | I62: 0 | J62: 0 | K62: 0 | L62: 0 | M62: 0 | N62: 0 | O62: 0 | P62: 0 | Q62: 0 | R62: =SUM($P$97:$Q$97)/10 -> -515736.1176 | S62: =SUM($P$97:$Q$97)/10 -> -515736.1176 | T62: -515736.1176 | U62: -515736.1176 | V62: -515736.1176 | W62: -515736.1176 | X62: -515736.1176 | Y62: -515736.1176 | Z62: -515736.1176 | AA62: -515736.1176 | AB62: -515736.1176 | AC62: 0 | AD62: 0 | AE62: 0 | AF62: 0 | AG62: 0 | AH62: 0 | AI62: 0 | AJ62: 0 | AK62: 0 | AL62: 0 | AM62: 0 | AN62: 0 | AO62: 0 | AP62: 0 | AQ62: 0 | AR62: 0 | AS62: 0 | AT62: 0
B63: Activos nuevos 1 - Valor residual | C63: 0 | D63: 0 | E63: 0 | F63: 0 | G63: 0 | H63: 0 | I63: 0 | J63: 0 | K63: 0 | L63: 0 | M63: 0 | N63: 0 | O63: 0 | P63: 0 | Q63: 0 | R63: =-SUM(P97:Q97) -> 5157361.176 | S63: =R63+S62 -> 4641625.059 | T63: =S63+T62 -> 4125888.941 | U63: 3610152.823 | V63: 3094416.706 | W63: 2578680.588 | X63: 2062944.471 | Y63: 1547208.353 | Z63: 1031472.235 | AA63: 515736.1176 | AB63: 8.149072528e-10 | AC63: 0 | AD63: 0 | AE63: 0 | AF63: 0 | AG63: 0 | AH63: 0 | AI63: 0 | AJ63: 0 | AK63: 0 | AL63: 0 | AM63: 0 | AN63: 0 | AO63: 0 | AP63: 0 | AQ63: 0 | AR63: 0 | AS63: 0 | AT63: 0
B64: Activos nuevos 2 - Depreciacion 15 años | C64: 0 | D64: 0 | E64: 0 | F64: 0 | G64: 0 | H64: 0 | I64: 0 | J64: 0 | K64: 0 | L64: 0 | M64: 0 | N64: 0 | O64: 0 | P64: 0 | Q64: 0 | R64: 0 | S64: 0 | T64: 0 | U64: 0 | V64: 0 | W64: 0 | X64: =SUM($U$97:$W$97)/15 -> -1083744.749 | Y64: -1083744.749 | Z64: -1083744.749 | AA64: -1083744.749 | AB64: -1083744.749 | AC64: -1083744.749 | AD64: -1083744.749 | AE64: -1083744.749 | AF64: -1083744.749 | AG64: -1083744.749 | AH64: -1083744.749 | AI64: -1083744.749 | AJ64: -1083744.749 | AK64: -1083744.749 | AL64: -1083744.749 | AM64: 0 | AN64: 0 | AO64: =-$C$16*AN65 -> 0 | AP64: 0 | AQ64: 0 | AR64: 0 | AS64: 0 | AT64: 0
B65: Activos nuevos 2 - Valor residual | C65: 0 | D65: 0 | E65: 0 | F65: 0 | G65: 0 | H65: 0 | I65: 0 | J65: 0 | K65: 0 | L65: 0 | M65: 0 | N65: 0 | O65: 0 | P65: 0 | Q65: 0 | R65: 0 | S65: 0 | T65: 0 | U65: 0 | V65: 0 | W65: 0 | X65: =-(SUM($U$97:$W$97))+X64 -> 15172426.49 | Y65: =X65+Y64 -> 14088681.74 | Z65: =Y65+Z64 -> 13004936.99 | AA65: 11921192.24 | AB65: 10837447.49 | AC65: 9753702.741 | AD65: 8669957.992 | AE65: 7586213.243 | AF65: 6502468.494 | AG65: 5418723.745 | AH65: 4334978.996 | AI65: 3251234.247 | AJ65: 2167489.498 | AK65: 1083744.749 | AL65: 2.328306437e-09 | AM65: 0 | AN65: 0 | AO65: =AN65+AO64 -> 0 | AP65: 0 | AQ65: 0 | AR65: 0 | AS65: 0 | AT65: 0
B66: Activos nuevos 3 - Depreciacion 10 años | C66: 0 | D66: 0 | E66: 0 | F66: 0 | G66: 0 | H66: 0 | I66: 0 | J66: 0 | K66: 0 | L66: 0 | M66: 0 | N66: 0 | O66: 0 | P66: 0 | Q66: 0 | R66: 0 | S66: 0 | T66: 0 | U66: 0 | V66: 0 | W66: 0 | X66: 0 | Y66: 0 | Z66: 0 | AA66: 0 | AB66: 0 | AC66: =SUM($AA$97:$AB$97)/10 -> -639967.7259 | AD66: =SUM($AA$97:$AB$97)/10 -> -639967.7259 | AE66: -639967.7259 | AF66: -639967.7259 | AG66: -639967.7259 | AH66: -639967.7259 | AI66: -639967.7259 | AJ66: -639967.7259 | AK66: -639967.7259 | AL66: -639967.7259 | AM66: -639967.7259 | AN66: 0 | AO66: =-$C$16*AN67 -> 0 | AP66: 0 | AQ66: 0 | AR66: 0 | AS66: 0 | AT66: 0
B67: Activos nuevos 3 - Valor residual | C67: 0 | D67: 0 | E67: 0 | F67: 0 | G67: 0 | H67: 0 | I67: 0 | J67: 0 | K67: 0 | L67: 0 | M67: 0 | N67: 0 | O67: 0 | P67: 0 | Q67: 0 | R67: 0 | S67: 0 | T67: 0 | U67: 0 | V67: 0 | W67: 0 | X67: 0 | Y67: 0 | Z67: 0 | AA67: 0 | AB67: 0 | AC67: =-SUM(AA97:AB97) -> 6399677.259 | AD67: =AC67+AD66 -> 5759709.533 | AE67: =AD67+AE66 -> 5119741.807 | AF67: 4479774.081 | AG67: 3839806.355 | AH67: 3199838.629 | AI67: 2559870.903 | AJ67: 1919903.178 | AK67: 1279935.452 | AL67: 639967.7259 | AM67: 9.313225746e-10 | AN67: 0 | AO67: =AN67+AO66 -> 0 | AP67: 0 | AQ67: 0 | AR67: 0 | AS67: 0 | AT67: 0
B68: Activos nuevos 4 - Depreciacion 15 años | C68: 0 | D68: 0 | E68: 0 | F68: 0 | G68: 0 | H68: 0 | I68: 0 | J68: 0 | K68: 0 | L68: 0 | M68: 0 | N68: 0 | O68: 0 | P68: 0 | Q68: 0 | R68: 0 | S68: 0 | T68: 0 | U68: 0 | V68: 0 | W68: 0 | X68: 0 | Y68: 0 | Z68: 0 | AA68: 0 | AB68: 0 | AC68: 0 | AD68: 0 | AE68: 0 | AF68: 0 | AG68: 0 | AH68: 0 | AI68: 0 | AJ68: 0 | AK68: 0 | AL68: 0 | AM68: 0 | AN68: 0 | AO68: =SUM($AL$97:$AN$97)/14 -> -2151520.852 | AP68: =SUM($AL$97:$AN$97)/14 -> -2151520.852 | AQ68: -2151520.852 | AR68: -2151520.852 | AS68: -2151520.852 | AT68: -2151520.852
B69: Activos nuevos 4 - Valor residual | C69: 0 | D69: 0 | E69: 0 | F69: 0 | G69: 0 | H69: 0 | I69: 0 | J69: 0 | K69: 0 | L69: 0 | M69: 0 | N69: 0 | O69: 0 | P69: 0 | Q69: 0 | R69: 0 | S69: 0 | T69: 0 | U69: 0 | V69: 0 | W69: 0 | X69: 0 | Y69: 0 | Z69: 0 | AA69: 0 | AB69: 0 | AC69: 0 | AD69: 0 | AE69: 0 | AF69: 0 | AG69: 0 | AH69: 0 | AI69: 0 | AJ69: 0 | AK69: 0 | AL69: 0 | AM69: 0 | AN69: 0 | AO69: =-(SUM(AL97:AN97))-AO68 -> 32272812.78 | AP69: =AO69+AP68 -> 30121291.93 | AQ69: =AP69+AQ68 -> 27969771.08 | AR69: 25818250.22 | AS69: 23666729.37 | AT69: 21515208.52
B70: Depreciacion de activos | C70: 0 | D70: 0 | E70: 0 | F70: 0 | G70: =SUM(G56:G60)+G62+G64+G66+G68 -> -3436811.168 | H70: =SUM(H56:H60)+H62+H64+H66+H68 -> -3436811.168 | I70: -3436811.168 | J70: -3436811.168 | K70: -3436811.168 | L70: -3292454.142 | M70: -3292454.142 | N70: -3292454.142 | O70: -3292454.142 | P70: -3292454.142 | Q70: -2871940.938 | R70: -3387677.056 | S70: -3387677.056 | T70: -3387677.056 | U70: -3387677.056 | V70: -2615111.468 | W70: -2615111.468 | X70: -3698856.217 | Y70: -3698856.217 | Z70: -3698856.217 | AA70: -3698856.217 | AB70: -3698856.217 | AC70: -3823087.825 | AD70: -3823087.825 | AE70: -3823087.825 | AF70: -3823087.825 | AG70: -3823087.825 | AH70: -3823087.825 | AI70: -3823087.825 | AJ70: -3823087.825 | AK70: -3823087.825 | AL70: -3823087.825 | AM70: -2739343.076 | AN70: -2099375.35 | AO70: -4250896.202 | AP70: -4250896.202 | AQ70: -4250896.202 | AR70: -4250896.202 | AS70: -4250896.202 | AT70: -4250896.202
B71: Valor residual de activos | C71: =C61+C65+C69 -> 0 | D71: =D61+D65+D69 -> 0 | E71: 0 | F71: 0 | G71: =G61+G63+G65+G67+G69 -> 119466885.7 | H71: =H61+H63+H65+H67+H69 -> 116030074.6 | I71: 112593263.4 | J71: 109156452.2 | K71: 105719641.1 | L71: 102427186.9 | M71: 99134732.79 | N71: 95842278.64 | O71: 92549824.5 | P71: 89257370.36 | Q71: 86385429.42 | R71: 88670849.66 | S71: 85283172.6 | T71: 81895495.55 | U71: 78507818.49 | V71: 75892707.02 | W71: 73277595.56 | X71: 85834910.58 | Y71: 82136054.36 | Z71: 78437198.14 | AA71: 74738341.92 | AB71: 71039485.71 | AC71: 74256042.87 | AD71: 70432955.04 | AE71: 66609867.22 | AF71: 62786779.39 | AG71: 58963691.57 | AH71: 55140603.74 | AI71: 51317515.92 | AJ71: 47494428.09 | AK71: 43671340.27 | AL71: 39848252.44 | AM71: 37108909.37 | AN71: 35009534.02 | AO71: 65182971.44 | AP71: 60932075.24 | AQ71: 56681179.04 | AR71: 52430282.84 | AS71: 48179386.64 | AT71: 43928490.43
B74: A. GASTOS
B75: 1. Costos anuales de O&M | C75: 0 | D75: 0 | E75: 0 | F75: 0 | G75: =-G51 -> -3476732.433 | H75: =-H51 -> -3328674.036 | I75: -3655735.643 | J75: -3742044.432 | K75: -7795071.625 | L75: -3920950.033 | M75: -4013650.228 | N75: -4108586.437 | O75: -4205813.642 | P75: -8661534.572 | Q75: -4407367.891 | R75: -4511811.926 | S75: -4618781.011 | T75: -4728337.374 | U75: -9626860.809 | V75: -4955468.687 | W75: -5073176.06 | X75: -5193735.637 | Y75: -5317217.862 | Z75: -10702661.51 | AA75: -5573240.934 | AB75: -5705931.709 | AC75: -5841845.08 | AD75: -5981060.813 | AE75: -11901954.04 | AF75: -6269728.534 | AG75: -6419350.311 | AH75: -6572614.137 | AI75: -6729610.357 | AJ75: -13239337.64 | AK75: -7055172.824 | AL75: -7223931.404 | AM75: -7396807.166 | AN75: -7573902.462 | AO75: -14731191.81 | AP75: -7941174.085 | AQ75: -8131568.337 | AR75: -8326618.111 | AS75: -8526439.393 | AT75: -16395900.19
B76: Gasto totale | G76: =G75 -> -3476732.433 | H76: =H75 -> -3328674.036 | I76: -3655735.643 | J76: -3742044.432 | K76: -7795071.625 | L76: -3920950.033 | M76: -4013650.228 | N76: -4108586.437 | O76: -4205813.642 | P76: -8661534.572 | Q76: -4407367.891 | R76: -4511811.926 | S76: -4618781.011 | T76: -4728337.374 | U76: -9626860.809 | V76: -4955468.687 | W76: -5073176.06 | X76: -5193735.637 | Y76: -5317217.862 | Z76: -10702661.51 | AA76: -5573240.934 | AB76: -5705931.709 | AC76: -5841845.08 | AD76: -5981060.813 | AE76: -11901954.04 | AF76: -6269728.534 | AG76: -6419350.311 | AH76: -6572614.137 | AI76: -6729610.357 | AJ76: -13239337.64 | AK76: -7055172.824 | AL76: -7223931.404 | AM76: -7396807.166 | AN76: -7573902.462 | AO76: -14731191.81 | AP76: -7941174.085 | AQ76: -8131568.337 | AR76: -8326618.111 | AS76: -8526439.393 | AT76: -16395900.19
B78: B. INGRESOS
B79: 1. Ingresos de pasajeros | C79: 0 | D79: 0 | E79: 0 | F79: 0 | G79: =G53 -> 3497073.426 | H79: 4662764.568 | I79: 4972071.336 | J79: 5069222.315 | K79: 5375094.776 | L79: 5476170.656 | M79: 5802567.295 | N79: 5909908.754 | O79: 6260347.122 | P79: 6372025.177 | Q79: 6745644.841 | R79: 6861834.689 | S79: 7305529.624 | T79: 7472006.438 | U79: 7947077.975 | V79: 8120280.452 | W79: 8628539.639 | X79: 8890604.79 | Y79: 9522437.805 | Z79: 9795090.388 | AA79: 10474479.79 | AB79: 10758147.53 | AC79: 11192776.69 | AD79: 11192776.69 | AE79: 11644964.87 | AF79: 11644964.87 | AG79: 12115421.45 | AH79: 12115421.45 | AI79: 12604884.48 | AJ79: 12604884.48 | AK79: 13114121.81 | AL79: 13114121.81 | AM79: 13643932.33 | AN79: 13643932.33 | AO79: 14195147.2 | AP79: 14195147.2 | AQ79: 14768631.15 | AR79: 14768631.15 | AS79: 15365283.84 | AT79: 15365283.84
B80: 2. Ingresos comerciales | C80: 0 | D80: 0 | E80: 0 | F80: 0 | G80: 120000 | H80: 122400 | I80: 124848 | J80: 127344.96 | K80: 129891.8592 | L80: 132489.6964 | M80: 135139.4903 | N80: 137842.2801 | O80: 140599.1257 | P80: 143411.1082 | Q80: 146279.3304 | R80: 149204.917 | S80: 152189.0153 | T80: 155232.7957 | U80: 158337.4516 | V80: 161504.2006 | W80: 164734.2846 | X80: 168028.9703 | Y80: 171389.5497 | Z80: 174817.3407 | AA80: 178313.6875 | AB80: 181879.9613 | AC80: 185517.5605 | AD80: 189227.9117 | AE80: 193012.4699 | AF80: 196872.7193 | AG80: 200810.1737 | AH80: 204826.3772 | AI80: 208922.9047 | AJ80: 213101.3628 | AK80: 217363.3901 | AL80: 221710.6579 | AM80: 226144.8711 | AN80: 230667.7685 | AO80: 235281.1238 | AP80: 239986.7463 | AQ80: 244786.4812 | AR80: 249682.2109 | AS80: 254675.8551 | AT80: 259769.3722
B81: Ingreso totale | C81: 0 | D81: 0 | E81: 0 | F81: 0 | G81: =G79+G80 -> 3617073.426 | H81: =H79+H80 -> 4785164.568 | I81: 5096919.336 | J81: 5196567.275 | K81: 5504986.635 | L81: 5608660.352 | M81: 5937706.785 | N81: 6047751.034 | O81: 6400946.248 | P81: 6515436.285 | Q81: 6891924.172 | R81: 7011039.606 | S81: 7457718.64 | T81: 7627239.234 | U81: 8105415.427 | V81: 8281784.653 | W81: 8793273.924 | X81: 9058633.76 | Y81: 9693827.355 | Z81: 9969907.728 | AA81: 10652793.47 | AB81: 10940027.49 | AC81: 11378294.25 | AD81: 11382004.6 | AE81: 11837977.34 | AF81: 11841837.59 | AG81: 12316231.63 | AH81: 12320247.83 | AI81: 12813807.38 | AJ81: 12817985.84 | AK81: 13331485.2 | AL81: 13335832.47 | AM81: 13870077.2 | AN81: 13874600.1 | AO81: 14430428.32 | AP81: 14435133.95 | AQ81: 15013417.63 | AR81: 15018313.36 | AS81: 15619959.7 | AT81: 15625053.22
B83: Flujo de caja neto (Ingreso total - Gasto total) | G83: =G81+G76 -> 140340.9929 | H83: =H81+H76 -> 1456490.532 | I83: 1441183.693 | J83: 1454522.843 | K83: -2290084.99 | L83: 1687710.319 | M83: 1924056.557 | N83: 1939164.597 | O83: 2195132.606 | P83: -2146098.287 | Q83: 2484556.28 | R83: 2499227.68 | S83: 2838937.629 | T83: 2898901.86 | U83: -1521445.383 | V83: 3326315.966 | W83: 3720097.865 | X83: 3864898.123 | Y83: 4376609.493 | Z83: -732753.7812 | AA83: 5079552.539 | AB83: 5234095.785 | AC83: 5536449.174 | AD83: 5400943.791 | AE83: -63976.69516 | AF83: 5572109.057 | AG83: 5896881.315 | AH83: 5747633.692 | AI83: 6084197.027 | AJ83: -421351.802 | AK83: 6276312.378 | AL83: 6111901.065 | AM83: 6473270.038 | AN83: 6300697.64 | AO83: -300763.4851 | AP83: 6493959.86 | AQ83: 6881849.29 | AR83: 6691695.246 | AS83: 7093520.307 | AT83: -770846.978
B85: C. FLUJO DE CAJA DE OPERACION
B86: 1. Utilitad antes de impuestos | C86: 0 | D86: 0 | E86: 0 | F86: 0 | G86: =G83 -> 140340.9929 | H86: =H83 -> 1456490.532 | I86: 1441183.693 | J86: 1454522.843 | K86: -2290084.99 | L86: 1687710.319 | M86: 1924056.557 | N86: 1939164.597 | O86: 2195132.606 | P86: -2146098.287 | Q86: 2484556.28 | R86: 2499227.68 | S86: 2838937.629 | T86: 2898901.86 | U86: -1521445.383 | V86: 3326315.966 | W86: 3720097.865 | X86: 3864898.123 | Y86: 4376609.493 | Z86: -732753.7812 | AA86: 5079552.539 | AB86: 5234095.785 | AC86: 5536449.174 | AD86: 5400943.791 | AE86: -63976.69516 | AF86: 5572109.057 | AG86: 5896881.315 | AH86: 5747633.692 | AI86: 6084197.027 | AJ86: -421351.802 | AK86: 6276312.378 | AL86: 6111901.065 | AM86: 6473270.038 | AN86: 6300697.64 | AO86: -300763.4851 | AP86: 6493959.86 | AQ86: 6881849.29 | AR86: 6691695.246 | AS86: 7093520.307 | AT86: -770846.978
B87: 2. Renta concessional | C87: 0 | D87: 0 | E87: 0 | F87: 0 | G87: =IF(G86>0,-$C$23*G86,0) -> 0 | H87: =IF(H86>0,-$C$23*H86,0) -> 0 | I87: 0 | J87: 0 | K87: 0 | L87: 0 | M87: 0 | N87: 0 | O87: 0 | P87: 0 | Q87: 0 | R87: 0 | S87: 0 | T87: 0 | U87: 0 | V87: 0 | W87: 0 | X87: 0 | Y87: 0 | Z87: 0 | AA87: 0 | AB87: 0 | AC87: 0 | AD87: 0 | AE87: 0 | AF87: 0 | AG87: 0 | AH87: 0 | AI87: 0 | AJ87: 0 | AK87: 0 | AL87: 0 | AM87: 0 | AN87: 0 | AO87: 0 | AP87: 0 | AQ87: 0 | AR87: 0 | AS87: 0 | AT87: 0
B88: 3. Depreciation | C88: 0 | D88: 0 | E88: 0 | F88: 0 | G88: =G70 -> -3436811.168 | H88: =H70 -> -3436811.168 | I88: -3436811.168 | J88: -3436811.168 | K88: -3436811.168 | L88: -3292454.142 | M88: -3292454.142 | N88: -3292454.142 | O88: -3292454.142 | P88: -3292454.142 | Q88: -2871940.938 | R88: -3387677.056 | S88: -3387677.056 | T88: -3387677.056 | U88: -3387677.056 | V88: -2615111.468 | W88: -2615111.468 | X88: -3698856.217 | Y88: -3698856.217 | Z88: -3698856.217 | AA88: -3698856.217 | AB88: -3698856.217 | AC88: -3823087.825 | AD88: -3823087.825 | AE88: -3823087.825 | AF88: -3823087.825 | AG88: -3823087.825 | AH88: -3823087.825 | AI88: -3823087.825 | AJ88: -3823087.825 | AK88: -3823087.825 | AL88: -3823087.825 | AM88: -2739343.076 | AN88: -2099375.35 | AO88: -4250896.202 | AP88: -4250896.202 | AQ88: -4250896.202 | AR88: -4250896.202 | AS88: -4250896.202 | AT88: -4250896.202
B89: 4. Base imponible ( 1-2-3) | C89: 0 | D89: 0 | E89: 0 | F89: 0 | G89: =G86+G87+G88 -> -3296470.175 | H89: -1980320.636 | I89: -1995627.475 | J89: -1982288.325 | K89: -5726896.158 | L89: -1604743.823 | M89: -1368397.585 | N89: -1353289.545 | O89: -1097321.537 | P89: -5438552.43 | Q89: -387384.6577 | R89: -888449.3755 | S89: -548739.4271 | T89: -488775.1958 | U89: -4909122.438 | V89: 711204.4979 | W89: 1104986.397 | X89: 166041.9065 | Y89: 677753.2765 | Z89: -4431609.998 | AA89: 1380696.322 | AB89: 1535239.568 | AC89: 1713361.349 | AD89: 1577855.966 | AE89: -3887064.52 | AF89: 1749021.231 | AG89: 2073793.49 | AH89: 1924545.867 | AI89: 2261109.202 | AJ89: -4244439.627 | AK89: 2453224.553 | AL89: 2288813.24 | AM89: 3733926.962 | AN89: 4201322.29 | AO89: -4551659.687 | AP89: 2243063.658 | AQ89: 2630953.088 | AR89: 2440799.044 | AS89: 2842624.105 | AT89: -5021743.18
B90: 5. Impuesta a la renta | C90: 0 | D90: 0 | E90: 0 | F90: 0 | G90: =IF(G89>0,-$C$24*G89,0) -> 0 | H90: =IF(H89>0,-$C$24*H89,0) -> 0 | I90: 0 | J90: 0 | K90: 0 | L90: 0 | M90: 0 | N90: 0 | O90: 0 | P90: 0 | Q90: 0 | R90: 0 | S90: 0 | T90: 0 | U90: 0 | V90: -248921.5743 | W90: -386745.2388 | X90: -58114.66729 | Y90: -237213.6468 | Z90: 0 | AA90: -483243.7128 | AB90: -537333.8489 | AC90: -599676.472 | AD90: -552249.5882 | AE90: 0 | AF90: -612157.431 | AG90: -725827.7214 | AH90: -673591.0536 | AI90: -791388.2206 | AJ90: 0 | AK90: -858628.5934 | AL90: -801084.6341 | AM90: -1306874.437 | AN90: -1470462.801 | AO90: 0 | AP90: -785072.2803 | AQ90: -920833.5807 | AR90: -854279.6653 | AS90: -994918.4366 | AT90: 0
B91: 6. Utilidad despues de impuestos | C91: 0 | D91: 0 | E91: 0 | F91: 0 | G91: =G89+G90 -> -3296470.175 | H91: =H89+H90 -> -1980320.636 | I91: -1995627.475 | J91: -1982288.325 | K91: -5726896.158 | L91: -1604743.823 | M91: -1368397.585 | N91: -1353289.545 | O91: -1097321.537 | P91: -5438552.43 | Q91: -387384.6577 | R91: -888449.3755 | S91: -548739.4271 | T91: -488775.1958 | U91: -4909122.438 | V91: 462282.9236 | W91: 718241.1579 | X91: 107927.2392 | Y91: 440539.6297 | Z91: -4431609.998 | AA91: 897452.6095 | AB91: 997905.7194 | AC91: 1113684.877 | AD91: 1025606.378 | AE91: -3887064.52 | AF91: 1136863.8 | AG91: 1347965.768 | AH91: 1250954.814 | AI91: 1469720.981 | AJ91: -4244439.627 | AK91: 1594595.959 | AL91: 1487728.606 | AM91: 2427052.525 | AN91: 2730859.488 | AO91: -4551659.687 | AP91: 1457991.378 | AQ91: 1710119.507 | AR91: 1586519.378 | AS91: 1847705.668 | AT91: -5021743.18
B92: 7.Depreciacion (agrego) | C92: 0 | D92: 0 | E92: 0 | F92: 0 | G92: =-G88 -> 3436811.168 | H92: =-H88 -> 3436811.168 | I92: 3436811.168 | J92: 3436811.168 | K92: 3436811.168 | L92: 3292454.142 | M92: 3292454.142 | N92: 3292454.142 | O92: 3292454.142 | P92: 3292454.142 | Q92: 2871940.938 | R92: 3387677.056 | S92: 3387677.056 | T92: 3387677.056 | U92: 3387677.056 | V92: 2615111.468 | W92: 2615111.468 | X92: 3698856.217 | Y92: 3698856.217 | Z92: 3698856.217 | AA92: 3698856.217 | AB92: 3698856.217 | AC92: 3823087.825 | AD92: 3823087.825 | AE92: 3823087.825 | AF92: 3823087.825 | AG92: 3823087.825 | AH92: 3823087.825 | AI92: 3823087.825 | AJ92: 3823087.825 | AK92: 3823087.825 | AL92: 3823087.825 | AM92: 2739343.076 | AN92: 2099375.35 | AO92: 4250896.202 | AP92: 4250896.202 | AQ92: 4250896.202 | AR92: 4250896.202 | AS92: 4250896.202 | AT92: 4250896.202
B93: Flujo de caja de operacion (6+7) | G93: =G91+G92 -> 140340.9929 | H93: =H91+H92 -> 1456490.532 | I93: 1441183.693 | J93: 1454522.843 | K93: -2290084.99 | L93: 1687710.319 | M93: 1924056.557 | N93: 1939164.597 | O93: 2195132.606 | P93: -2146098.287 | Q93: 2484556.28 | R93: 2499227.68 | S93: 2838937.629 | T93: 2898901.86 | U93: -1521445.383 | V93: 3077394.391 | W93: 3333352.626 | X93: 3806783.456 | Y93: 4139395.847 | Z93: -732753.7812 | AA93: 4596308.826 | AB93: 4696761.936 | AC93: 4936772.702 | AD93: 4848694.203 | AE93: -63976.69516 | AF93: 4959951.626 | AG93: 5171053.593 | AH93: 5074042.639 | AI93: 5292808.806 | AJ93: -421351.802 | AK93: 5417683.784 | AL93: 5310816.431 | AM93: 5166395.601 | AN93: 4830234.838 | AO93: -300763.4851 | AP93: 5708887.58 | AQ93: 5961015.709 | AR93: 5837415.581 | AS93: 6098601.87 | AT93: -770846.978
B95: D. FLUJO DE CAJA DE INVERSION
B96: 1. Inversion inicial | C96: -5988689.921 | D96: -25895905.4 | E96: -65675491.62 | F96: -25343609.96
B97: 2. Nuevos equipos | G97: 0 | H97: 0 | I97: 0 | J97: 0 | K97: 0 | L97: 0 | M97: 0 | N97: 0 | O97: 0 | P97: -2288674.986 | Q97: -2868686.19 | R97: 0 | S97: 0 | T97: 0 | U97: -2965373.772 | V97: -8993404.457 | W97: -4297393.007 | X97: 0 | Y97: 0 | Z97: 0 | AA97: -2839973.333 | AB97: -3559703.926 | AC97: 0 | AD97: 0 | AE97: 0 | AF97: 0 | AG97: 0 | AH97: 0 | AI97: 0 | AJ97: 0 | AK97: 0 | AL97: -7622851.628 | AM97: -16629380.26 | AN97: -5869060.043 | AO97: 0 | AP97: 0 | AQ97: 0 | AR97: 0 | AS97: 0 | AT97: 0
B98: 3. Valor residual despues tasas | AJ98: =AJ71 -> 47494428.09 | AT98: =AT71 -> 43928490.43
B99: Flujo de caja del capital | C99: =C96+C97+C98 -> -5988689.921 | D99: -25895905.4 | E99: -65675491.62 | F99: -25343609.96 | G99: 0 | H99: 0 | I99: 0 | J99: 0 | K99: 0 | L99: 0 | M99: 0 | N99: 0 | O99: 0 | P99: -2288674.986 | Q99: -2868686.19 | R99: 0 | S99: 0 | T99: 0 | U99: -2965373.772 | V99: -8993404.457 | W99: -4297393.007 | X99: 0 | Y99: 0 | Z99: 0 | AA99: -2839973.333 | AB99: -3559703.926 | AC99: 0 | AD99: 0 | AE99: 0 | AF99: 0 | AG99: 0 | AH99: 0 | AI99: 0 | AJ99: 47494428.09 | AK99: 0 | AL99: -7622851.628 | AM99: -16629380.26 | AN99: -5869060.043 | AO99: 0 | AP99: 0 | AQ99: 0 | AR99: 0 | AS99: 0 | AT99: 43928490.43
E101: Inversion inicial con la inflacion | F101: =C99+D99+E99+F99 -> -122903696.9
B103: TOTAL CASHFLOW (30 años) | C103: =C93+C99 -> -5988689.921 | D103: -25895905.4 | E103: -65675491.62 | F103: -25343609.96 | G103: 140340.9929 | H103: 1456490.532 | I103: 1441183.693 | J103: 1454522.843 | K103: -2290084.99 | L103: 1687710.319 | M103: 1924056.557 | N103: 1939164.597 | O103: 2195132.606 | P103: -4434773.273 | Q103: -384129.9099 | R103: 2499227.68 | S103: 2838937.629 | T103: 2898901.86 | U103: -4486819.154 | V103: -5916010.065 | W103: -964040.3811 | X103: 3806783.456 | Y103: 4139395.847 | Z103: -732753.7812 | AA103: 1756335.494 | AB103: 1137058.01 | AC103: 4936772.702 | AD103: 4848694.203 | AE103: -63976.69516 | AF103: 4959951.626 | AG103: 5171053.593 | AH103: 5074042.639 | AI103: 5292808.806 | AJ103: 47073076.29
B104: TRI (30 años) | AJ104: =IRR(C103:AJ103) -> -0.01149125585
B106: TOTAL CASHFLOW (40 años) | C106: =C93+C99 -> -5988689.921 | D106: =D93+D99 -> -25895905.4 | E106: -65675491.62 | F106: -25343609.96 | G106: 140340.9929 | H106: 1456490.532 | I106: 1441183.693 | J106: 1454522.843 | K106: -2290084.99 | L106: 1687710.319 | M106: 1924056.557 | N106: 1939164.597 | O106: 2195132.606 | P106: -4434773.273 | Q106: -384129.9099 | R106: 2499227.68 | S106: 2838937.629 | T106: 2898901.86 | U106: -4486819.154 | V106: -5916010.065 | W106: -964040.3811 | X106: 3806783.456 | Y106: 4139395.847 | Z106: -732753.7812 | AA106: 1756335.494 | AB106: 1137058.01 | AC106: 4936772.702 | AD106: 4848694.203 | AE106: -63976.69516 | AF106: 4959951.626 | AG106: 5171053.593 | AH106: 5074042.639 | AI106: 5292808.806 | AJ106: =AJ93+AJ97 -> -421351.802 | AK106: 5417683.784 | AL106: -2312035.196 | AM106: -11462984.66 | AN106: -1038825.204 | AO106: -300763.4851 | AP106: 5708887.58 | AQ106: 5961015.709 | AR106: 5837415.581 | AS106: 6098601.87 | AT106: 43157643.46
B107: TRI (40 años) | AT107: =IRR(C106:AT106) -> -0.00639808499
B109: EBE (Excedente Bruto de Explotacion) | C109: =C83 -> 0 | D109: =D83 -> 0 | E109: 0 | F109: 0 | G109: 140340.9929 | H109: 1456490.532 | I109: 1441183.693 | J109: 1454522.843 | K109: -2290084.99 | L109: 1687710.319 | M109: 1924056.557 | N109: 1939164.597 | O109: 2195132.606 | P109: -2146098.287 | Q109: 2484556.28 | R109: 2499227.68 | S109: 2838937.629 | T109: 2898901.86 | U109: -1521445.383 | V109: 3326315.966 | W109: 3720097.865 | X109: 3864898.123 | Y109: 4376609.493 | Z109: -732753.7812 | AA109: 5079552.539 | AB109: 5234095.785 | AC109: 5536449.174 | AD109: 5400943.791 | AE109: -63976.69516 | AF109: 5572109.057 | AG109: 5896881.315 | AH109: 5747633.692 | AI109: 6084197.027 | AJ109: -421351.802 | AK109: 6276312.378 | AL109: 6111901.065 | AM109: 6473270.038 | AN109: 6300697.64 | AO109: -300763.4851 | AP109: 6493959.86 | AQ109: 6881849.29 | AR109: 6691695.246 | AS109: 7093520.307 | AT109: -770846.978
B110: ENE (Excedente Neto de Explotacion) | C110: =C109+C70 -> 0 | D110: =D109+D70 -> 0 | E110: 0 | F110: 0 | G110: -3296470.175 | H110: -1980320.636 | I110: -1995627.475 | J110: -1982288.325 | K110: -5726896.158 | L110: -1604743.823 | M110: -1368397.585 | N110: -1353289.545 | O110: -1097321.537 | P110: -5438552.43 | Q110: -387384.6577 | R110: -888449.3755 | S110: -548739.4271 | T110: -488775.1958 | U110: -4909122.438 | V110: 711204.4979 | W110: 1104986.397 | X110: 166041.9065 | Y110: 677753.2765 | Z110: -4431609.998 | AA110: 1380696.322 | AB110: 1535239.568 | AC110: 1713361.349 | AD110: 1577855.966 | AE110: -3887064.52 | AF110: 1749021.231 | AG110: 2073793.49 | AH110: 1924545.867 | AI110: 2261109.202 | AJ110: -4244439.627 | AK110: 2453224.553 | AL110: 2288813.24 | AM110: 3733926.962 | AN110: 4201322.29 | AO110: -4551659.687 | AP110: 2243063.658 | AQ110: 2630953.088 | AR110: 2440799.044 | AS110: 2842624.105 | AT110: -5021743.18
B112: Ratio de coberture (Ingresos/Egresos) | G112: =ABS(G81)/ABS(G76) -> 1.040365773 | H112: =ABS(H81)/ABS(H76) -> 1.437558775 | I112: 1.394225358 | J112: 1.388697374 | K112: 0.7062137335 | L112: 1.430434029 | M112: 1.479378234 | N112: 1.471978532 | O112: 1.521928167 | P112: 0.7522265518 | Q112: 1.563727908 | R112: 1.553929934 | S112: 1.61465084 | T112: 1.613091163 | U112: 0.8419583068 | V112: 1.671241446 | W112: 1.733287751 | X112: 1.744146101 | Y112: 1.823101405 | Z112: 0.931535368 | AA112: 1.911418078 | AB112: 1.917307821 | AC112: 1.947722697 | AD112: 1.90300767 | AE112: 0.9946246898 | AF112: 1.888732108 | AG112: 1.9186103 | AH112: 1.874482143 | AI112: 1.904093507 | AJ112: 0.9681742536 | AK112: 1.889604342 | AL112: 1.846062999 | AM112: 1.875143814 | AN112: 1.831895799 | AO112: 0.9795832212 | AP112: 1.817758154 | AQ112: 1.846312667 | AR112: 1.803651033 | AS112: 1.831944025 | AT112: 0.9529853824
B113: Margen neta de la operacion | G113: =G112-1 -> 0.04036577321 | H113: =H112-1 -> 0.4375587747 | I113: 0.3942253582 | J113: 0.3886973738 | K113: -0.2937862665 | L113: 0.4304340288 | M113: 0.4793782337 | N113: 0.4719785325 | O113: 0.5219281671 | P113: -0.2477734482 | Q113: 0.5637279078 | R113: 0.5539299335 | S113: 0.6146508401 | T113: 0.6130911631 | U113: -0.1580416932 | V113: 0.6712414457 | W113: 0.7332877513 | X113: 0.744146101 | Y113: 0.8231014051 | Z113: -0.06846463196 | AA113: 0.9114180777 | AB113: 0.9173078215 | AC113: 0.9477226969 | AD113: 0.9030076704 | AE113: -0.005375310219 | AF113: 0.888732108 | AG113: 0.9186103 | AH113: 0.8744821425 | AI113: 0.9040935068 | AJ113: -0.03182574637 | AK113: 0.889604342 | AL113: 0.8460629985 | AM113: 0.8751438145 | AN113: 0.831895799 | AO113: -0.02041677883 | AP113: 0.8177581539 | AQ113: 0.8463126674 | AR113: 0.803651033 | AS113: 0.831944025 | AT113: -0.04701461761
B115: TOTAL CASHFLOW (30 años) | C115: =C103 -> -5988689.921 | D115: =D103 -> -25895905.4 | E115: -65675491.62 | F115: -25343609.96 | G115: 140340.9929 | H115: 1456490.532 | I115: 1441183.693 | J115: 1454522.843 | K115: -2290084.99 | L115: 1687710.319 | M115: 1924056.557 | N115: 1939164.597 | O115: 2195132.606 | P115: -4434773.273 | Q115: -384129.9099 | R115: 2499227.68 | S115: 2838937.629 | T115: 2898901.86 | U115: -4486819.154 | V115: -5916010.065 | W115: -964040.3811 | X115: 3806783.456 | Y115: 4139395.847 | Z115: -732753.7812 | AA115: 1756335.494 | AB115: 1137058.01 | AC115: 4936772.702 | AD115: 4848694.203 | AE115: -63976.69516 | AF115: 4959951.626 | AG115: 5171053.593 | AH115: 5074042.639 | AI115: 5292808.806 | AJ115: 47073076.29
B116: VAN (30 años] | AJ116: =NPV(C26,C115:AJ115) -> -82317857.09
B118: TOTAL CASHFLOW (40 años) | C118: =C106 -> -5988689.921 | D118: =D106 -> -25895905.4 | E118: -65675491.62 | F118: -25343609.96 | G118: 140340.9929 | H118: 1456490.532 | I118: 1441183.693 | J118: 1454522.843 | K118: -2290084.99 | L118: 1687710.319 | M118: 1924056.557 | N118: 1939164.597 | O118: 2195132.606 | P118: -4434773.273 | Q118: -384129.9099 | R118: 2499227.68 | S118: 2838937.629 | T118: 2898901.86 | U118: -4486819.154 | V118: -5916010.065 | W118: -964040.3811 | X118: 3806783.456 | Y118: 4139395.847 | Z118: -732753.7812 | AA118: 1756335.494 | AB118: 1137058.01 | AC118: 4936772.702 | AD118: 4848694.203 | AE118: -63976.69516 | AF118: 4959951.626 | AG118: 5171053.593 | AH118: 5074042.639 | AI118: 5292808.806 | AJ118: -421351.802 | AK118: 5417683.784 | AL118: -2312035.196 | AM118: -11462984.66 | AN118: -1038825.204 | AO118: -300763.4851 | AP118: 5708887.58 | AQ118: 5961015.709 | AR118: 5837415.581 | AS118: 6098601.87 | AT118: 43157643.46
B119: VAN (40 años] | AT119: =NPV(C26,C118:AT118) -> -82804548.43
C123: -15374793.7 | D123: -32471752.92 | E123: -62793043.62 | F123: -31184167.87 | G123: 4461627.088 | H123: 7085887.322 | I123: 7506676.642 | J123: 7866933.684 | K123: 4138496.948 | L123: 8621725.01 | M123: 9016880.039 | N123: 9408111.113 | O123: 9811291.038 | P123: 3028760.372 | Q123: 6759476.332 | R123: 11095752.58 | S123: 11666827.93 | T123: 12256200.78 | U123: 5145482.916 | V123: 4835774.046 | W123: 9963796.047 | X123: 14965506.41 | Y123: 15819114.66 | Z123: 11262213.88 | AA123: 14269356.72 | AB123: 13717569.79 | AC123: 18902277.06 | AD123: 19259777.25 | AE123: 13648271.16 | AF123: 19994678.37 | AG123: 20372314.83 | AH123: 20756902.17 | AI123: 21148563.03 | AJ123: 14981724.14
C125: =C123-C103 -> -9386103.781 | D125: =D123-D103 -> -6575847.523 | E125: 2882448.003 | F125: -5840557.901 | G125: 4321286.095 | H125: 5629396.79 | I125: 6065492.949 | J125: 6412410.84 | K125: 6428581.938 | L125: 6934014.691 | M125: 7092823.482 | N125: 7468946.516 | O125: 7616158.433 | P125: 7463533.646 | Q125: 7143606.242 | R125: 8596524.897 | S125: 8827890.299 | T125: 9357298.925 | U125: 9632302.07 | V125: 10751784.11 | W125: 10927836.43 | X125: 11158722.96 | Y125: 11679718.81 | Z125: 11994967.66 | AA125: 12513021.23 | AB125: 12580511.78 | AC125: 13965504.36 | AD125: 14411083.05 | AE125: 13712247.85 | AF125: 15034726.74 | AG125: 15201261.24 | AH125: 15682859.53 | AI125: 15855754.22 | AJ125: -32091352.15

Sheet Project Finance Model (hidden)
C2: Legend | D2: Input
D3: Key celd
D4: Error
D5: Calculated
C7: OUTPUTS
C9: Min DSCR | D9: =E313 -> 1.7
D10: =E315 -> 2023-12-31
C11: LLCR | D11: =E296 -> 25.0290071
C13: NPV project | D13: =E255 -> -83168715.77
C14: IRR Project | D14: =E257 -> -0.043543921
C16: PRIVATE FINANCE
C17: NPV Equity | D17: =IF(E58<0.01,"N/A",E272) -> 38279.53724
C18: IRR Equity | D18: =IF(E58<0.01,"N/A",E274) -> 0.1305756989
C19: Debt / Equity | D19: =IF(E58<0.01,"N/A",E59) -> 0.1
C21: Test "CASH BALANCE > 0" | D21: =IF(MIN(F232:AM232)<0,"NOK","OK") -> OK
C22: Test "INITIAL TREASURY" | D22: =IF(I232>J220,"OK","NOK") -> OK
C24: General inputs
C26: Construction Costs (excluding inflation) | D26: USD 2015 | E26: ='Global Financial Model'!C11 -> 118700824.5
C27: Municipal direct subsidies (yearly) | D27: USD 2015 | E27: 0
C28: Treasury | D28: % | E28: 0.49 | F28: of DSRA
C29: Discount Factor (WACC) | D29: % | E29: ='Global Financial Model'!C26 -> 0.13
E31: 2015 | F31: 2016 | G31: 2017 | H31: 2018 | I31: 2019 | J31: 2020 | K31: 2021 | L31: 2022 | M31: 2023 | N31: 2024 | O31: 2025 | P31: 2026 | Q31: 2027 | R31: 2028 | S31: 2029 | T31: 2030 | U31: 2031 | V31: 2032 | W31: 2033 | X31: 2034 | Y31: 2035 | Z31: 2036 | AA31: 2037 | AB31: 2038 | AC31: 2039 | AD31: 2040 | AE31: 2041 | AF31: 2042 | AG31: 2043 | AH31: 2044 | AI31: 2045 | AJ31: 2046 | AK31: 2047 | AL31: 2048
C32: CPI | D32: % | E32: 0.0255 | F32: 0.025 | G32: 0.025 | H32: 0.025 | I32: 0.025 | J32: 0.02 | K32: 0.02 | L32: 0.02 | M32: 0.02 | N32: 0.02 | O32: 0.02 | P32: 0.02 | Q32: 0.02 | R32: 0.02 | S32: 0.02 | T32: 0.02 | U32: 0.02 | V32: 0.02 | W32: 0.02 | X32: 0.02 | Y32: 0.02 | Z32: 0.02 | AA32: 0.02 | AB32: 0.02 | AC32: 0.02 | AD32: 0.02 | AE32: 0.02 | AF32: 0.02 | AG32: 0.02 | AH32: 0.02 | AI32: 0.02 | AJ32: 0.02 | AK32: 0.02 | AL32: 0.02
C35: Debt Facility
C37: Private Facility Limit | D37: USD | E37: =$E$59*E26*E58 -> 747815.1943
C38: Private Amortisation Start | D38: Date | E38: =DATE(YEAR(E73)+1,12,31) -> 2019-12-31
C39: Amortisation Period | D39: Years | E39: 15 | G39: TOTAL INSTALMENTS | I39: =+D191 -> 16 | J39: REPAYMENTS
C40: Private Debt Term End | D40: Date | E40: =DATE(YEAR(E38)+E39,12,31) -> 2034-12-31
C43: Municipal Facility limit | D43: USD | E43: =E26*H58 -> 111222672.6
C44: Municipal Amortisation Start | D44: Date | E44: =DATE(YEAR(E71)+1,12,31) -> 2016-12-31
C45: Amortisation Period | D45: Years | E45: 15 | G45: TOTAL INSTALMENTS | I45: =+D188 -> 16 | J45: REPAYMENTS
C46: Municipal Debt Term End | D46: Date | E46: =DATE(YEAR(E44)+E45,12,31) -> 2031-12-31
E48: Construction | F48: 1 | G48: 2 | H48: 3 | I48: 4
C49: Private loan - Interest Margin | D49: % p.a. | E49: =0.07-E65 -> 0.0367 | F49: =0.07-F65 -> 0.0367 | G49: 0.0367 | H49: 0.0367 | I49: 0.0367
C50: Municipal loan - Interest Margin | E50: =E49 -> 0.0367 | F50: =F49 -> 0.0367 | G50: 0.0367 | H50: 0.0367 | I50: 0.0367
C52: Upfront Fee | D52: % | E52: 0.01
C53: Upfront Fee on private loan | D53: USD | E53: =E52*E37 -> 7478.151943
C54: Upfront fee on municipal loan | D54: USD | E54: =E52*E43 -> 1112226.726
C56: FUNDING SCHEME
C57: Initial dibursment | E57: YES | F57: =IF($E$57="NO",0,1) -> 1 | G57: (if no : Equity is back ended)
C58: Private funding vs Municipal funding ratio | E58: 0.063 | G58: Initial Municipal debt | H58: =1-E58 -> 0.937
C59: Private funding: Inital Debt vs Equity ratio | E59: 0.1
C61: INITIAL TREASURY | E61: 100000
E64: 2015 | F64: 2016 | G64: 2017 | H64: 2018 | I64: 2019 | J64: 2020 | K64: 2021 | L64: 2022 | M64: 2023 | N64: 2024 | O64: 2025 | P64: 2026 | Q64: 2027 | R64: 2028 | S64: 2029 | T64: 2030 | U64: 2031 | V64: 2032 | W64: 2033 | X64: 2034 | Y64: 2035 | Z64: 2036 | AA64: 2037 | AB64: 2038 | AC64: 2039 | AD64: 2040 | AE64: 2041 | AF64: 2042 | AG64: 2043 | AH64: 2044 | AI64: 2045 | AJ64: 2046 | AK64: 2047 | AL64: 2048
C65: Private loan - BBSY | D65: % p.a. | E65: 0.0333 | F65: 0.0333 | G65: 0.0333 | H65: 0.0333 | I65: 0.0333 | J65: 0.0333 | K65: 0.0333 | L65: 0.0333 | M65: 0.0333 | N65: 0.0333 | O65: 0.0333 | P65: 0.0333 | Q65: 0.0333 | R65: 0.0333 | S65: 0.0333 | T65: 0.0333 | U65: 0.0333 | V65: 0.0333 | W65: 0.0333 | X65: 0.0333 | Y65: 0.0333 | Z65: 0.0333 | AA65: 0.0333 | AB65: 0.0333 | AC65: 0.0333 | AD65: 0.0333 | AE65: 0.0333 | AF65: 0.0333 | AG65: 0.0333 | AH65: 0.0333 | AI65: 0.0333 | AJ65: 0.0333 | AK65: 0.0333 | AL65: 0.0333
C66: Municipal loan - BBSY | D66: % p.a. | E66: 0.0333 | F66: 0.0333 | G66: 0.0333 | H66: 0.0333 | I66: 0.0333 | J66: 0.0333 | K66: 0.0333 | L66: 0.0333 | M66: 0.0333 | N66: 0.0333 | O66: 0.0333 | P66: 0.0333 | Q66: 0.0333 | R66: 0.0333 | S66: 0.0333 | T66: 0.0333 | U66: 0.0333 | V66: 0.0333 | W66: 0.0333 | X66: 0.0333 | Y66: 0.0333 | Z66: 0.0333 | AA66: 0.0333 | AB66: 0.0333 | AC66: 0.0333 | AD66: 0.0333 | AE66: 0.0333 | AF66: 0.0333 | AG66: 0.0333 | AH66: 0.0333 | AI66: 0.0333 | AJ66: 0.0333 | AK66: 0.0333 | AL66: 0.0333
C68: Timing
E70: Construction | F70: Operation
C71: Start date | E71: 2015-06-01 | F71: =E73+1 -> 2019-01-01
C72: Duration | E72: 4 | F72: 30
C73: End date | E73: =DATE(YEAR(E71),MONTH(E72)+E72*12,0) -> 2018-12-31 | F73: =DATE(YEAR(F71),MONTH(F72)+F72*12,0) -> 2048-12-31
D76: Start | E76: End | F76: =E71 -> 2015-06-01 | G76: =F77+1 -> 2016-01-01 | H76: =G77+1 -> 2017-01-01 | I76: 2018-01-01 | J76: 2019-01-01 | K76: 2020-01-01 | L76: 2021-01-01 | M76: 2022-01-01 | N76: 2023-01-01 | O76: 2024-01-01 | P76: 2025-01-01 | Q76: 2026-01-01 | R76: 2027-01-01 | S76: 2028-01-01 | T76: 2029-01-01 | U76: 2030-01-01 | V76: 2031-01-01 | W76: 2032-01-01 | X76: 2033-01-01 | Y76: 2034-01-01 | Z76: 2035-01-01 | AA76: 2036-01-01 | AB76: 2037-01-01 | AC76: 2038-01-01 | AD76: 2039-01-01 | AE76: 2040-01-01 | AF76: 2041-01-01 | AG76: 2042-01-01 | AH76: 2043-01-01 | AI76: 2044-01-01 | AJ76: 2045-01-01 | AK76: 2046-01-01 | AL76: 2047-01-01 | AM76: 2048-01-01
F77: =DATE(YEAR(F76),12,31) -> 2015-12-31 | G77: =DATE(YEAR(G76),12,31) -> 2016-12-31 | H77: 2017-12-31 | I77: 2018-12-31 | J77: 2019-12-31 | K77: 2020-12-31 | L77: 2021-12-31 | M77: 2022-12-31 | N77: 2023-12-31 | O77: 2024-12-31 | P77: 2025-12-31 | Q77: 2026-12-31 | R77: 2027-12-31 | S77: 2028-12-31 | T77: 2029-12-31 | U77: 2030-12-31 | V77: 2031-12-31 | W77: 2032-12-31 | X77: 2033-12-31 | Y77: 2034-12-31 | Z77: 2035-12-31 | AA77: 2036-12-31 | AB77: 2037-12-31 | AC77: 2038-12-31 | AD77: 2039-12-31 | AE77: 2040-12-31 | AF77: 2041-12-31 | AG77: 2042-12-31 | AH77: 2043-12-31 | AI77: 2044-12-31 | AJ77: 2045-12-31 | AK77: 2046-12-31 | AL77: 2047-12-31 | AM77: 2048-12-31
C78: Construction | D78: =E71 -> 2015-06-01 | E78: =E73 -> 2018-12-31 | F78: =IF(AND(F$76>=$D78,F$77<=$E78),1,0) -> 1 | G78: 1 | H78: 1 | I78: 1 | J78: 0 | K78: 0 | L78: 0 | M78: 0 | N78: 0 | O78: 0 | P78: =IF(AND(P$76>=$D78,P$77<=$E78),1,0) -> 0 | Q78: 0 | R78: 0 | S78: 0 | T78: 0 | U78: 0 | V78: 0 | W78: 0 | X78: 0 | Y78: 0 | Z78: =IF(AND(Z$76>=$D78,Z$77<=$E78),1,0) -> 0 | AA78: 0 | AB78: 0 | AC78: 0 | AD78: 0 | AE78: 0 | AF78: 0 | AG78: 0 | AH78: 0 | AI78: 0 | AJ78: 0 | AK78: 0 | AL78: 0 | AM78: 0
C79: Operation | D79: =F71 -> 2019-01-01 | E79: =F73 -> 2048-12-31 | F79: 0 | G79: 0 | H79: 0 | I79: 0 | J79: 1 | K79: 1 | L79: 1 | M79: 1 | N79: 1 | O79: 1 | P79: 1 | Q79: 1 | R79: 1 | S79: 1 | T79: 1 | U79: 1 | V79: 1 | W79: 1 | X79: 1 | Y79: 1 | Z79: 1 | AA79: 1 | AB79: 1 | AC79: 1 | AD79: 1 | AE79: 1 | AF79: 1 | AG79: 1 | AH79: 1 | AI79: 1 | AJ79: 1 | AK79: 1 | AL79: 1 | AM79: 1
C81: Number of days | D81: Num# | F81: =F77-$E$71 -> 213 | G81: 579 | H81: 944 | I81: 1309 | J81: 1674 | K81: 2040 | L81: 2405 | M81: 2770 | N81: 3135 | O81: 3501 | P81: 3866 | Q81: 4231 | R81: 4596 | S81: 4962 | T81: 5327 | U81: 5692 | V81: 6057 | W81: 6423 | X81: 6788 | Y81: 7153 | Z81: 7518 | AA81: 7884 | AB81: 8249 | AC81: 8614 | AD81: 8979 | AE81: 9345 | AF81: 9710 | AG81: 10075 | AH81: 10440 | AI81: 10806 | AJ81: 11171 | AK81: 11536 | AL81: 11901 | AM81: 12267
C82: =C29 -> Discount Factor (WACC) | D82: =D29 -> % | F82: =POWER(1+$E$29,-F81/365) -> 0.9311624542 | G82: 0.8237616932 | H82: 0.7289926488 | I82: 0.6451262379 | J82: 0.5709081751 | K82: 0.5050593298 | L82: 0.4469551591 | M82: 0.395535539 | N82: 0.3500314504 | O82: 0.3096586412 | P82: 0.2740341957 | Q82: 0.2425081378 | R82: 0.2146089715 | S82: 0.1898558613 | T82: 0.1680140366 | U82: 0.1486849881 | V82: 0.1315796355 | W82: 0.116403172 | X82: 0.1030116566 | Y82: 0.09116075809 | Z82: 0.08067323725 | AA82: 0.07136834417 | AB82: 0.0631578267 | AC82: 0.05589188204 | AD82: 0.04946184251 | AE82: 0.04375688791 | AF82: 0.03872290966 | AG82: 0.03426806164 | AH82: 0.03032571827 | AI82: 0.02682793418 | AJ82: 0.02374153467 | AK82: 0.02101020767 | AL82: 0.01859310413 | AM82: 0.01644856585
C84: Flags & Counters
C86: Days in Period | D86: Days | F86: =F77-F76+1 -> 214 | G86: 366 | H86: 365 | I86: 365 | J86: 365 | K86: 366 | L86: 365 | M86: 365 | N86: 365 | O86: 366 | P86: 365 | Q86: 365 | R86: 365 | S86: 366 | T86: 365 | U86: 365 | V86: 365 | W86: 366 | X86: 365 | Y86: 365 | Z86: 365 | AA86: 366 | AB86: 365 | AC86: 365 | AD86: 365 | AE86: 366 | AF86: 365 | AG86: 365 | AH86: 365 | AI86: 366 | AJ86: 365 | AK86: 365 | AL86: 365 | AM86: 366
C87: Year: Calendar | D87: Num# | F87: =YEAR(F77) -> 2015 | G87: 2016 | H87: 2017 | I87: 2018 | J87: 2019 | K87: 2020 | L87: 2021 | M87: 2022 | N87: 2023 | O87: 2024 | P87: 2025 | Q87: 2026 | R87: 2027 | S87: 2028 | T87: 2029 | U87: 2030 | V87: 2031 | W87: 2032 | X87: 2033 | Y87: 2034 | Z87: 2035 | AA87: 2036 | AB87: 2037 | AC87: 2038 | AD87: 2039 | AE87: 2040 | AF87: 2041 | AG87: 2042 | AH87: 2043 | AI87: 2044 | AJ87: 2045 | AK87: 2046 | AL87: 2047 | AM87: 2048
C88: Year: Operations | D88: Num# | F88: =(E88+1)*F79 -> 0 | G88: 0 | H88: 0 | I88: 0 | J88: 1 | K88: 2 | L88: 3 | M88: 4 | N88: 5 | O88: 6 | P88: 7 | Q88: 8 | R88: 9 | S88: 10 | T88: 11 | U88: 12 | V88: 13 | W88: 14 | X88: 15 | Y88: 16 | Z88: 17 | AA88: 18 | AB88: 19 | AC88: 20 | AD88: 21 | AE88: 22 | AF88: 23 | AG88: 24 | AH88: 25 | AI88: 26 | AJ88: 27 | AK88: 28 | AL88: 29 | AM88: 30
C89: Month: Construction | D89: Num# | F89: =(E89+MONTH(E73-E71))*F78 -> 8 | G89: =(F89+12)*G78 -> 20 | H89: 32 | I89: 44 | J89: 0 | K89: 0 | L89: 0 | M89: 0 | N89: 0 | O89: 0 | P89: 0 | Q89: 0 | R89: 0 | S89: 0 | T89: 0 | U89: 0 | V89: 0 | W89: 0 | X89: 0 | Y89: 0 | Z89: 0 | AA89: 0 | AB89: 0 | AC89: 0 | AD89: 0 | AE89: 0 | AF89: 0 | AG89: 0 | AH89: 0 | AI89: 0 | AJ89: 0 | AK89: 0 | AL89: 0 | AM89: 0
C90: Year: Construction | D90: Num# | F90: =(E90+1)*F78 -> 1 | G90: 2 | H90: 3 | I90: 4 | J90: 0 | K90: 0 | L90: 0 | M90: 0 | N90: 0 | O90: 0 | P90: 0 | Q90: 0 | R90: 0 | S90: 0 | T90: 0 | U90: 0 | V90: 0 | W90: 0 | X90: 0 | Y90: 0 | Z90: 0 | AA90: 0 | AB90: 0 | AC90: 0 | AD90: 0 | AE90: 0 | AF90: 0 | AG90: 0 | AH90: 0 | AI90: 0 | AJ90: 0 | AK90: 0 | AL90: 0 | AM90: 0
C91: Year: Project | D91: Num# | F91: =IF(F78=1,F90,(E91+1)*F79) -> 1 | G91: 2 | H91: 3 | I91: 4 | J91: 5 | K91: 6 | L91: 7 | M91: 8 | N91: 9 | O91: 10 | P91: 11 | Q91: 12 | R91: 13 | S91: 14 | T91: 15 | U91: 16 | V91: 17 | W91: 18 | X91: 19 | Y91: 20 | Z91: 21 | AA91: 22 | AB91: 23 | AC91: 24 | AD91: 25 | AE91: 26 | AF91: 27 | AG91: 28 | AH91: 29 | AI91: 30 | AJ91: 31 | AK91: 32 | AL91: 33 | AM91: 34
D93: Start | E93: End
C94: Flag: End of Construction | D94: =D78 -> 2015-06-01 | E94: =E78 -> 2018-12-31 | F94: =IF(AND(F89<>0,G89=0),1,0) -> 0 | G94: 0 | H94: 0 | I94: 1 | J94: 0 | K94: 0 | L94: 0 | M94: 0 | N94: 0 | O94: 0 | P94: 0 | Q94: 0 | R94: 0 | S94: 0 | T94: 0 | U94: 0 | V94: 0 | W94: 0 | X94: 0 | Y94: 0 | Z94: 0 | AA94: =IF(AND(AA89<>0,AD89=0),1,0) -> 0 | AB94: 0 | AC94: 0 | AD94: 0 | AE94: 0 | AF94: 0 | AG94: 0 | AH94: 0 | AI94: 0 | AJ94: 0 | AK94: 0 | AL94: 0 | AM94: 0
D96: Start | E96: End
C97: Flag: Municipal Debt Repayment | D97: =E44 -> 2016-12-31 | E97: =E46 -> 2031-12-31 | F97: =IF(AND(F77>=$D97,F77<=$E97),1,0) -> 0 | G97: 1 | H97: 1 | I97: 1 | J97: 1 | K97: 1 | L97: 1 | M97: 1 | N97: 1 | O97: 1 | P97: 1 | Q97: 1 | R97: 1 | S97: 1 | T97: 1 | U97: 1 | V97: 1 | W97: 0 | X97: 0 | Y97: 0 | Z97: 0 | AA97: 0 | AB97: 0 | AC97: 0 | AD97: 0 | AE97: 0 | AF97: 0 | AG97: 0 | AH97: 0 | AI97: 0 | AJ97: 0 | AK97: 0 | AL97: 0 | AM97: 0
C98: Flag: Private Debt Repayment | D98: =E38 -> 2019-12-31 | E98: =E40 -> 2034-12-31 | F98: =IF(AND(F77>=$D98,F77<=$E98),1,0) -> 0 | G98: 0 | H98: 0 | I98: 0 | J98: 1 | K98: 1 | L98: 1 | M98: 1 | N98: 1 | O98: 1 | P98: 1 | Q98: 1 | R98: 1 | S98: 1 | T98: 1 | U98: 1 | V98: 1 | W98: 1 | X98: 1 | Y98: 1 | Z98: 0 | AA98: 0 | AB98: 0 | AC98: 0 | AD98: 0 | AE98: 0 | AF98: 0 | AG98: 0 | AH98: 0 | AI98: 0 | AJ98: 0 | AK98: 0 | AL98: 0 | AM98: 0
C101: Technical inputs
C103: Construction
C104: Construction: CapEx
C105: Construction Costs | D105: USD | E105: =SUM(F105:AM105) -> 122903696.9 | F105: =-'Global Financial Model'!C96 -> 5988689.921 | G105: =-'Global Financial Model'!D96 -> 25895905.4 | H105: =-'Global Financial Model'!E96 -> 65675491.62 | I105: =-'Global Financial Model'!F96 -> 25343609.96 | J105: =-'Global Financial Model'!G96 -> 0 | K105: =-'Global Financial Model'!H96 -> 0 | L105: =-'Global Financial Model'!I96 -> 0 | M105: =-'Global Financial Model'!J96 -> 0 | N105: =-'Global Financial Model'!K96 -> 0 | O105: =-'Global Financial Model'!L96 -> 0 | P105: =-'Global Financial Model'!M96 -> 0 | Q105: =-'Global Financial Model'!N96 -> 0 | R105: =-'Global Financial Model'!O96 -> 0 | S105: =-'Global Financial Model'!P96 -> 0 | T105: =-'Global Financial Model'!Q96 -> 0 | U105: =-'Global Financial Model'!R96 -> 0 | V105: =-'Global Financial Model'!S96 -> 0 | W105: =-'Global Financial Model'!T96 -> 0 | X105: =-'Global Financial Model'!U96 -> 0 | Y105: =-'Global Financial Model'!V96 -> 0 | Z105: =-'Global Financial Model'!W96 -> 0 | AA105: =-'Global Financial Model'!X96 -> 0 | AB105: =-'Global Financial Model'!Y96 -> 0 | AC105: =-'Global Financial Model'!Z96 -> 0 | AD105: =-'Global Financial Model'!AA96 -> 0 | AE105: =-'Global Financial Model'!AB96 -> 0 | AF105: =-'Global Financial Model'!AC96 -> 0 | AG105: =-'Global Financial Model'!AD96 -> 0 | AH105: =-'Global Financial Model'!AE96 -> 0 | AI105: =-'Global Financial Model'!AF96 -> 0 | AJ105: =-'Global Financial Model'!AG96 -> 0 | AK105: =-'Global Financial Model'!AH96 -> 0 | AL105: =-'Global Financial Model'!AI96 -> 0 | AM105: =-'Global Financial Model'!AJ96 -> 0
C106: Renewal Costs | D106: UDS | E106: =SUM(F106:AM106) -> 27813209.67 | F106: =-'Global Financial Model'!C97 -> 0 | G106: =-'Global Financial Model'!D97 -> 0 | H106: =-'Global Financial Model'!E97 -> 0 | I106: =-'Global Financial Model'!F97 -> 0 | J106: =-'Global Financial Model'!G97 -> 0 | K106: =-'Global Financial Model'!H97 -> 0 | L106: =-'Global Financial Model'!I97 -> 0 | M106: =-'Global Financial Model'!J97 -> 0 | N106: =-'Global Financial Model'!K97 -> 0 | O106: =-'Global Financial Model'!L97 -> 0 | P106: =-'Global Financial Model'!M97 -> 0 | Q106: =-'Global Financial Model'!N97 -> 0 | R106: =-'Global Financial Model'!O97 -> 0 | S106: =-'Global Financial Model'!P97 -> 2288674.986 | T106: =-'Global Financial Model'!Q97 -> 2868686.19 | U106: =-'Global Financial Model'!R97 -> 0 | V106: =-'Global Financial Model'!S97 -> 0 | W106: =-'Global Financial Model'!T97 -> 0 | X106: =-'Global Financial Model'!U97 -> 2965373.772 | Y106: =-'Global Financial Model'!V97 -> 8993404.457 | Z106: =-'Global Financial Model'!W97 -> 4297393.007 | AA106: =-'Global Financial Model'!X97 -> 0 | AB106: =-'Global Financial Model'!Y97 -> 0 | AC106: =-'Global Financial Model'!Z97 -> 0 | AD106: =-'Global Financial Model'!AA97 -> 2839973.333 | AE106: =-'Global Financial Model'!AB97 -> 3559703.926 | AF106: =-'Global Financial Model'!AC97 -> 0 | AG106: =-'Global Financial Model'!AD97 -> 0 | AH106: =-'Global Financial Model'!AE97 -> 0 | AI106: =-'Global Financial Model'!AF97 -> 0 | AJ106: =-'Global Financial Model'!AG97 -> 0 | AK106: =-'Global Financial Model'!AH97 -> 0 | AL106: =-'Global Financial Model'!AI97 -> 0 | AM106: =-'Global Financial Model'!AJ97 -> 0
C108: Construction: Funding
C109: Construction Costs | D109: USD | E109: =SUM(F109:AM109) -> 122903696.9 | F109: =F105 -> 5988689.921 | G109: =G105 -> 25895905.4 | H109: 65675491.62 | I109: 25343609.96 | J109: 0 | K109: 0 | L109: 0 | M109: 0 | N109: 0 | O109: 0 | P109: 0 | Q109: 0 | R109: 0 | S109: 0 | T109: 0 | U109: 0 | V109: 0 | W109: 0 | X109: 0 | Y109: 0 | Z109: 0 | AA109: 0 | AB109: 0 | AC109: 0 | AD109: 0 | AE109: 0 | AF109: 0 | AG109: 0 | AH109: 0 | AI109: 0 | AJ109: 0 | AK109: 0 | AL109: 0 | AM109: 0
C110: Anticipated treasury | D110: USD | E110: 100000 | I110: =E61 -> 100000
C111: Renewal Costs | D111: USD | E111: 27813209.67 | F111: =F106 -> 0 | G111: =G106 -> 0 | H111: 0 | I111: 0 | J111: 0 | K111: 0 | L111: 0 | M111: 0 | N111: 0 | O111: 0 | P111: 0 | Q111: 0 | R111: 0 | S111: 2288674.986 | T111: 2868686.19 | U111: 0 | V111: 0 | W111: 0 | X111: 2965373.772 | Y111: 8993404.457 | Z111: 4297393.007 | AA111: 0 | AB111: 0 | AC111: 0 | AD111: 2839973.333 | AE111: 3559703.926 | AF111: 0 | AG111: 0 | AH111: 0 | AI111: 0 | AJ111: 0 | AK111: 0 | AL111: 0 | AM111: 0
C112: Private Debt: Interest During Construction | D112: USD | E112: 59752.04576 | F112: =F151 -> 0 | G112: =G151 -> 2651.803346 | H112: =H151 -> 14065.57385 | I112: 43034.66857 | J112: 0 | K112: 0 | L112: 0 | M112: 0 | N112: 0 | O112: 0 | P112: 0 | Q112: 0 | R112: 0 | S112: 0 | T112: 0 | U112: 0 | V112: 0 | W112: 0 | X112: 0 | Y112: 0 | Z112: 0 | AA112: 0 | AB112: =AB151 -> 0 | AC112: 0 | AD112: 0 | AE112: 0 | AF112: 0 | AG112: 0 | AH112: 0 | AI112: 0 | AJ112: 0 | AK112: 0 | AL112: 0 | AM112: 0
C113: Private Debt: Upfront Fee | D113: USD | E113: 7478.151943 | F113: =F138 -> 7478.151943 | G113: =G138 -> 0 | H113: 0 | I113: 0 | J113: 0 | K113: 0 | L113: 0 | M113: 0 | N113: 0 | O113: 0 | P113: 0 | Q113: 0 | R113: 0 | S113: 0 | T113: 0 | U113: 0 | V113: 0 | W113: 0 | X113: 0 | Y113: 0 | Z113: 0 | AA113: 0 | AB113: =AB138 -> 0 | AC113: 0 | AD113: 0 | AE113: 0 | AF113: 0 | AG113: 0 | AH113: 0 | AI113: 0 | AJ113: 0 | AK113: 0 | AL113: 0 | AM113: 0
C114: Total Required Funding | D114: USD | E114: 150884136.8 | F114: =SUM(F109:F113) -> 5996168.073 | G114: =SUM(G109:G113) -> 25898557.2 | H114: =SUM(H109:H113) -> 65689557.2 | I114: 25486644.63 | J114: 0 | K114: 0 | L114: 0 | M114: 0 | N114: 0 | O114: 0 | P114: 0 | Q114: 0 | R114: 0 | S114: 2288674.986 | T114: 2868686.19 | U114: 0 | V114: 0 | W114: 0 | X114: 2965373.772 | Y114: 8993404.457 | Z114: 4297393.007 | AA114: 0 | AB114: 0 | AC114: 0 | AD114: 2839973.333 | AE114: 3559703.926 | AF114: 0 | AG114: 0 | AH114: 0 | AI114: 0 | AJ114: 0 | AK114: 0 | AL114: 0 | AM114: 0
C115: Treasury: Release | D115: USD | E115: -27813209.67 | F115: =IF(F79=1,-F114,0) -> 0 | G115: 0 | H115: 0 | I115: 0 | J115: 0 | K115: 0 | L115: 0 | M115: 0 | N115: 0 | O115: 0 | P115: 0 | Q115: 0 | R115: 0 | S115: -2288674.986 | T115: -2868686.19 | U115: 0 | V115: 0 | W115: 0 | X115: -2965373.772 | Y115: -8993404.457 | Z115: -4297393.007 | AA115: 0 | AB115: 0 | AC115: 0 | AD115: -2839973.333 | AE115: -3559703.926 | AF115: 0 | AG115: 0 | AH115: 0 | AI115: 0 | AJ115: 0 | AK115: 0 | AL115: 0 | AM115: 0
C116: Municipality: Funding through debt | D116: USD | E116: -115317458.7 | F116: =IF(F78=1,-F114*(1-$E$58),0) -> -5618409.484 | G116: -24266948.1 | H116: -61551115.09 | I116: -23880986.02 | J116: 0 | K116: 0 | L116: 0 | M116: 0 | N116: 0 | O116: 0 | P116: 0 | Q116: 0 | R116: 0 | S116: 0 | T116: 0 | U116: 0 | V116: 0 | W116: 0 | X116: 0 | Y116: 0 | Z116: 0 | AA116: 0 | AB116: 0 | AC116: 0 | AD116: 0 | AE116: 0 | AF116: 0 | AG116: 0 | AH116: 0 | AI116: 0 | AJ116: 0 | AK116: 0 | AL116: 0 | AM116: 0
C117: Private: Debt funding | D117: USD | E117: -747815.1943 | F117: =IF(F78=1,IF($F$57=1,-MIN(F114*$E$59*$E$58,F135),-MIN(F114*$E$58,F135)),0) -> -37775.85886 | G117: -163160.9104 | H117: -413844.2103 | I117: -133034.2147 | J117: 0 | K117: 0 | L117: 0 | M117: 0 | N117: 0 | O117: 0 | P117: 0 | Q117: 0 | R117: 0 | S117: 0 | T117: 0 | U117: 0 | V117: 0 | W117: 0 | X117: 0 | Y117: 0 | Z117: 0 | AA117: 0 | AB117: 0 | AC117: 0 | AD117: 0 | AE117: 0 | AF117: 0 | AG117: 0 | AH117: 0 | AI117: 0 | AJ117: 0 | AK117: 0 | AL117: 0 | AM117: 0
C118: Sub Total | D118: USD | E118: 7005653.213 | F118: =SUM(F114:F117) -> 339982.7297 | G118: 1468448.193 | H118: 3724597.893 | I118: 1472624.397 | J118: 0 | K118: 0 | L118: 0 | M118: 0 | N118: 0 | O118: 0 | P118: 0 | Q118: 0 | R118: 0 | S118: 0 | T118: 0 | U118: 0 | V118: 0 | W118: 0 | X118: 0 | Y118: 0 | Z118: 0 | AA118: 0 | AB118: 0 | AC118: 0 | AD118: 0 | AE118: 0 | AF118: 0 | AG118: 0 | AH118: 0 | AI118: 0 | AJ118: 0 | AK118: 0 | AL118: 0 | AM118: 0
C119: Private: Equity Funding | D119: USD | E119: -7005653.213 | F119: =-F118 -> -339982.7297 | G119: =-G118 -> -1468448.193 | H119: -3724597.893 | I119: -1472624.397 | J119: 0 | K119: 0 | L119: 0 | M119: 0 | N119: 0 | O119: 0 | P119: 0 | Q119: 0 | R119: 0 | S119: 0 | T119: 0 | U119: 0 | V119: 0 | W119: 0 | X119: 0 | Y119: 0 | Z119: 0 | AA119: 0 | AB119: =-AB118 -> 0 | AC119: 0 | AD119: 0 | AE119: 0 | AF119: 0 | AG119: 0 | AH119: 0 | AI119: 0 | AJ119: 0 | AK119: 0 | AL119: 0 | AM119: 0
C120: Funding Shortfall | D120: USD | E120: 0 | F120: =SUM(F118:F119) -> 0 | G120: 0 | H120: 0 | I120: 0 | J120: 0 | K120: 0 | L120: 0 | M120: 0 | N120: 0 | O120: 0 | P120: 0 | Q120: 0 | R120: 0 | S120: 0 | T120: 0 | U120: 0 | V120: 0 | W120: 0 | X120: 0 | Y120: 0 | Z120: 0 | AA120: 0 | AB120: =SUM(AB118:AB119) -> 0 | AC120: 0 | AD120: 0 | AE120: 0 | AF120: 0 | AG120: 0 | AH120: 0 | AI120: 0 | AJ120: 0 | AK120: 0 | AL120: 0 | AM120: 0
C122: Construction: Debt
C123: Balance B/f (SPV) | D123: USD | F123: =E127 -> 0 | G123: =F127 -> 37775.85886 | H123: =G127 -> 200936.7692 | I123: 614780.9796 | J123: 0 | K123: 0 | L123: 0 | M123: 0 | N123: 0 | O123: 0 | P123: 0 | Q123: 0 | R123: 0 | S123: 0 | T123: 0 | U123: 0 | V123: 0 | W123: 0 | X123: 0 | Y123: 0 | Z123: 0 | AA123: =Z127 -> 0 | AB123: =AA127 -> 0 | AC123: 0 | AD123: 0 | AE123: 0 | AF123: 0 | AG123: 0 | AH123: 0 | AI123: 0 | AJ123: 0 | AK123: 0 | AL123: 0 | AM123: 0
C124: Disbursement to Fund Project Costs (SPV) | D124: USD | E124: =SUM(F124:AM124) -> 747815.1943 | F124: =-F117 -> 37775.85886 | G124: 163160.9104 | H124: 413844.2103 | I124: 133034.2147 | J124: 0 | K124: 0 | L124: 0 | M124: 0 | N124: 0 | O124: 0 | P124: 0 | Q124: 0 | R124: 0 | S124: 0 | T124: 0 | U124: 0 | V124: 0 | W124: 0 | X124: 0 | Y124: 0 | Z124: 0 | AA124: 0 | AB124: 0 | AC124: 0 | AD124: 0 | AE124: 0 | AF124: 0 | AG124: 0 | AH124: 0 | AI124: 0 | AJ124: 0 | AK124: 0 | AL124: 0 | AM124: 0
C125: Repayments during construction (SPV) | D125: USD | E125: =SUM(F125:AM125) -> 0 | F125: =IF(F78=1,-F198,0) -> 0 | G125: =IF(G78=1,-G198,0) -> 0 | H125: 0 | I125: 0 | J125: 0 | K125: 0 | L125: 0 | M125: 0 | N125: 0 | O125: 0 | P125: 0 | Q125: 0 | R125: 0 | S125: 0 | T125: 0 | U125: 0 | V125: 0 | W125: 0 | X125: 0 | Y125: 0 | Z125: 0 | AA125: 0 | AB125: 0 | AC125: 0 | AD125: 0 | AE125: 0 | AF125: 0 | AG125: 0 | AH125: 0 | AI125: 0 | AJ125: 0 | AK125: 0 | AL125: 0 | AM125: 0
C126: Refinance @ Completion (SPV) | D126: USD | E126: =SUM(F126:AM126) -> -747815.1943 | F126: =-SUM(F123:F125)*F94 -> 0 | G126: =-SUM(G123:G125)*G94 -> 0 | H126: =-SUM(H123:H125)*H94 -> 0 | I126: -747815.1943 | J126: 0 | K126: 0 | L126: 0 | M126: 0 | N126: 0 | O126: 0 | P126: 0 | Q126: 0 | R126: 0 | S126: 0 | T126: 0 | U126: 0 | V126: 0 | W126: 0 | X126: 0 | Y126: 0 | Z126: 0 | AA126: 0 | AB126: 0 | AC126: 0 | AD126: 0 | AE126: 0 | AF126: 0 | AG126: 0 | AH126: 0 | AI126: 0 | AJ126: 0 | AK126: 0 | AL126: 0 | AM126: 0
C127: Balance C/f (SPV) | D127: USD | F127: =SUM(F123:F126) -> 37775.85886 | G127: =SUM(G123:G126) -> 200936.7692 | H127: 614780.9796 | I127: 0 | J127: 0 | K127: 0 | L127: 0 | M127: 0 | N127: 0 | O127: 0 | P127: 0 | Q127: 0 | R127: 0 | S127: 0 | T127: 0 | U127: 0 | V127: 0 | W127: 0 | X127: 0 | Y127: 0 | Z127: 0 | AA127: 0 | AB127: 0 | AC127: 0 | AD127: 0 | AE127: 0 | AF127: 0 | AG127: 0 | AH127: 0 | AI127: 0 | AJ127: 0 | AK127: 0 | AL127: 0 | AM127: 0
C129: Balance B/f (Municipaly) | D129: USD | F129: =E133 -> 0 | G129: =F133 -> 5618409.484 | H129: 29684227.18 | I129: 90054069.6 | J129: =I133 -> 0 | K129: 0 | L129: 0 | M129: 0 | N129: 0 | O129: 0 | P129: 0 | Q129: 0 | R129: 0 | S129: 0 | T129: 0 | U129: 0 | V129: 0 | W129: 0 | X129: 0 | Y129: 0 | Z129: 0 | AA129: 0 | AB129: 0 | AC129: 0 | AD129: 0 | AE129: 0 | AF129: 0 | AG129: 0 | AH129: 0 | AI129: 0 | AJ129: 0 | AK129: 0 | AL129: 0 | AM129: 0
C130: Disbursement to Fund Project Costs (Municipality) | D130: USD | E130: =SUM(F130:AM130) -> 115317458.7 | F130: =-F116 -> 5618409.484 | G130: =-G116 -> 24266948.1 | H130: 61551115.09 | I130: 23880986.02 | J130: =-J116 -> 0 | K130: 0 | L130: 0 | M130: 0 | N130: 0 | O130: 0 | P130: 0 | Q130: 0 | R130: 0 | S130: 0 | T130: 0 | U130: 0 | V130: 0 | W130: 0 | X130: 0 | Y130: 0 | Z130: 0 | AA130: 0 | AB130: 0 | AC130: 0 | AD130: 0 | AE130: 0 | AF130: 0 | AG130: 0 | AH130: 0 | AI130: 0 | AJ130: 0 | AK130: 0 | AL130: 0 | AM130: 0
C131: Repayments during construction (Municipality) | D131: USD | E131: =SUM(F131:AM131) -> -5375845.272 | F131: =IF(F78=1,-F204,0) -> 0 | G131: =IF(G78=1,-G204,0) -> -201130.4028 | H131: -1181272.68 | I131: -3993442.189 | J131: 0 | K131: 0 | L131: 0 | M131: 0 | N131: 0 | O131: 0 | P131: 0 | Q131: 0 | R131: 0 | S131: 0 | T131: 0 | U131: 0 | V131: 0 | W131: 0 | X131: 0 | Y131: 0 | Z131: 0 | AA131: 0 | AB131: 0 | AC131: 0 | AD131: 0 | AE131: 0 | AF131: 0 | AG131: 0 | AH131: 0 | AI131: 0 | AJ131: 0 | AK131: 0 | AL131: 0 | AM131: 0
C132: Refinance @ Completion (Municipality) | D132: USD | E132: -109941613.4 | F132: =-SUM(F129:F131)*F94 -> 0 | G132: =-SUM(G129:G131)*G94 -> 0 | H132: =-SUM(H129:H131)*H94 -> 0 | I132: -109941613.4 | J132: 0 | K132: 0 | L132: 0 | M132: 0 | N132: 0 | O132: 0 | P132: 0 | Q132: 0 | R132: 0 | S132: 0 | T132: 0 | U132: 0 | V132: 0 | W132: 0 | X132: 0 | Y132: 0 | Z132: 0 | AA132: 0 | AB132: 0 | AC132: 0 | AD132: 0 | AE132: 0 | AF132: 0 | AG132: 0 | AH132: 0 | AI132: 0 | AJ132: 0 | AK132: 0 | AL132: 0 | AM132: 0
C133: Balance C/f (Municipality) | D133: USD | F133: =SUM(F129:F132) -> 5618409.484 | G133: =SUM(G129:G132) -> 29684227.18 | H133: 90054069.6 | I133: 0 | J133: =SUM(J129:J132) -> 0 | K133: =SUM(K129:K132) -> 0 | L133: =SUM(L129:L132) -> 0 | M133: =SUM(M129:M132) -> 0 | N133: =SUM(N129:N132) -> 0 | O133: =SUM(O129:O132) -> 0 | P133: =SUM(P129:P132) -> 0 | Q133: =SUM(Q129:Q132) -> 0 | R133: =SUM(R129:R132) -> 0 | S133: =SUM(S129:S132) -> 0 | T133: =SUM(T129:T132) -> 0 | U133: =SUM(U129:U132) -> 0 | V133: =SUM(V129:V132) -> 0 | W133: =SUM(W129:W132) -> 0 | X133: =SUM(X129:X132) -> 0 | Y133: =SUM(Y129:Y132) -> 0 | Z133: =SUM(Z129:Z132) -> 0 | AA133: =SUM(AA129:AA132) -> 0 | AB133: =SUM(AB129:AB132) -> 0 | AC133: =SUM(AC129:AC132) -> 0 | AD133: =SUM(AD129:AD132) -> 0 | AE133: =SUM(AE129:AE132) -> 0 | AF133: =SUM(AF129:AF132) -> 0 | AG133: =SUM(AG129:AG132) -> 0 | AH133: =SUM(AH129:AH132) -> 0 | AI133: =SUM(AI129:AI132) -> 0 | AJ133: =SUM(AJ129:AJ132) -> 0 | AK133: =SUM(AK129:AK132) -> 0 | AL133: =SUM(AL129:AL132) -> 0 | AM133: =SUM(AM129:AM132) -> 0
C135: Undrawn Facility (SPV) | D135: USD | E135: =E37 -> 747815.1943 | F135: =MAX(0,$E135-F123)*F78 -> 747815.1943 | G135: 710039.3355 | H135: 546878.4251 | I135: 133034.2147 | J135: 0 | K135: 0 | L135: 0 | M135: 0 | N135: 0 | O135: 0 | P135: 0 | Q135: 0 | R135: 0 | S135: 0 | T135: 0 | U135: 0 | V135: 0 | W135: 0 | X135: 0 | Y135: 0 | Z135: 0 | AA135: 0 | AB135: 0 | AC135: 0 | AD135: 0 | AE135: 0 | AF135: 0 | AG135: 0 | AH135: 0 | AI135: 0 | AJ135: 0 | AK135: 0 | AL135: 0 | AM135: 0
C136: Undrawn Facility (Municipality) | D136: USD | E136: =E43 -> 111222672.6 | F136: =MAX(0,$E136-F129)*F78 -> 111222672.6 | G136: 105604263.1 | H136: 81538445.37 | I136: 21168602.96 | J136: 0 | K136: 0 | L136: 0 | M136: 0 | N136: 0 | O136: 0 | P136: 0 | Q136: 0 | R136: 0 | S136: 0 | T136: 0 | U136: 0 | V136: 0 | W136: 0 | X136: 0 | Y136: 0 | Z136: 0 | AA136: 0 | AB136: 0 | AC136: 0 | AD136: 0 | AE136: 0 | AF136: 0 | AG136: 0 | AH136: 0 | AI136: 0 | AJ136: 0 | AK136: 0 | AL136: 0 | AM136: 0
C138: Upfront Fee (SPV) | D138: USD | E138: =E53 -> 7478.151943 | F138: =$E138*IF(F90=1,1,0) -> 7478.151943 | G138: 0 | H138: 0 | I138: 0 | J138: 0 | K138: 0 | L138: 0 | M138: 0 | N138: 0 | O138: 0 | P138: 0 | Q138: 0 | R138: 0 | S138: 0 | T138: 0 | U138: 0 | V138: 0 | W138: 0 | X138: 0 | Y138: 0 | Z138: 0 | AA138: 0 | AB138: 0 | AC138: 0 | AD138: 0 | AE138: 0 | AF138: 0 | AG138: 0 | AH138: 0 | AI138: 0 | AJ138: 0 | AK138: 0 | AL138: 0 | AM138: 0
C139: Undrawn Facility (Municipality) | D139: USD | E139: =E54 -> 1112226.726 | F139: =$E139*IF(F90=1,1,0) -> 1112226.726 | G139: 0 | H139: 0 | I139: 0 | J139: 0 | K139: 0 | L139: 0 | M139: 0 | N139: 0 | O139: 0 | P139: 0 | Q139: 0 | R139: 0 | S139: 0 | T139: 0 | U139: 0 | V139: 0 | W139: 0 | X139: 0 | Y139: 0 | Z139: 0 | AA139: 0 | AB139: 0 | AC139: 0 | AD139: 0 | AE139: 0 | AF139: 0 | AG139: 0 | AH139: 0 | AI139: 0 | AJ139: 0 | AK139: 0 | AL139: 0 | AM139: 0
C141: BBSY (REFERENCE RATE FOR SWAP) | D141: % p.a. | F141: =LOOKUP(F87,$E$64:$AL$64,$E$65:$AL$65)*F78 -> 0.0333 | G141: 0.0333 | H141: 0.0333 | I141: 0.0333 | J141: 0 | K141: 0 | L141: 0 | M141: 0 | N141: 0 | O141: 0 | P141: 0 | Q141: 0 | R141: 0 | S141: 0 | T141: 0 | U141: 0 | V141: 0 | W141: 0 | X141: 0 | Y141: 0 | Z141: 0 | AA141: 0 | AB141: 0 | AC141: 0 | AD141: 0 | AE141: 0 | AF141: 0 | AG141: 0 | AH141: 0 | AI141: 0 | AJ141: 0 | AK141: 0 | AL141: 0 | AM141: 0
C142: Interest Margin (SPV) | D142: % p.a. | F142: =$E$49*F78 -> 0.0367 | G142: 0.0367 | H142: 0.0367 | I142: 0.0367 | J142: 0 | K142: 0 | L142: 0 | M142: 0 | N142: 0 | O142: 0 | P142: 0 | Q142: 0 | R142: 0 | S142: 0 | T142: 0 | U142: 0 | V142: 0 | W142: 0 | X142: 0 | Y142: 0 | Z142: 0 | AA142: 0 | AB142: 0 | AC142: 0 | AD142: 0 | AE142: 0 | AF142: 0 | AG142: 0 | AH142: 0 | AI142: 0 | AJ142: 0 | AK142: 0 | AL142: 0 | AM142: 0
C143: All-in-Rate (SPV) | D143: % p.a. | F143: =SUM(F141:F142) -> 0.07 | G143: =SUM(G141:G142) -> 0.07 | H143: 0.07 | I143: 0.07 | J143: 0 | K143: 0 | L143: =SUM(L141:L142) -> 0 | M143: =SUM(M141:M142) -> 0 | N143: =SUM(N141:N142) -> 0 | O143: =SUM(O141:O142) -> 0 | P143: 0 | Q143: =SUM(Q141:Q142) -> 0 | R143: =SUM(R141:R142) -> 0 | S143: =SUM(S141:S142) -> 0 | T143: =SUM(T141:T142) -> 0 | U143: 0 | V143: =SUM(V141:V142) -> 0 | W143: =SUM(W141:W142) -> 0 | X143: =SUM(X141:X142) -> 0 | Y143: =SUM(Y141:Y142) -> 0 | Z143: 0 | AA143: =SUM(AA141:AA142) -> 0 | AB143: =SUM(AB141:AB142) -> 0 | AC143: =SUM(AC141:AC142) -> 0 | AD143: =SUM(AD141:AD142) -> 0 | AE143: 0 | AF143: =SUM(AF141:AF142) -> 0 | AG143: =SUM(AG141:AG142) -> 0 | AH143: =SUM(AH141:AH142) -> 0 | AI143: =SUM(AI141:AI142) -> 0 | AJ143: 0 | AK143: =SUM(AK141:AK142) -> 0 | AL143: =SUM(AL141:AL142) -> 0 | AM143: =SUM(AM141:AM142) -> 0
C144: All-in-Rate (SPV) | D144: % p.p. | F144: =(1+F143)^(F86/365)-1 -> 0.04046565515 | G144: 0.07019836018 | H144: 0.07 | I144: 0.07 | J144: 0 | K144: 0 | L144: 0 | M144: 0 | N144: 0 | O144: 0 | P144: 0 | Q144: 0 | R144: 0 | S144: 0 | T144: 0 | U144: 0 | V144: 0 | W144: 0 | X144: 0 | Y144: 0 | Z144: 0 | AA144: 0 | AB144: 0 | AC144: 0 | AD144: 0 | AE144: 0 | AF144: 0 | AG144: 0 | AH144: 0 | AI144: 0 | AJ144: 0 | AK144: 0 | AL144: 0 | AM144: 0
C146: BBSY (REFERENCE RATE FOR SWAP) | D146: % p.a. | F146: =LOOKUP(F87,$E$64:$AL$64,$E$66:$AL$66)*F78 -> 0.0333 | G146: 0.0333 | H146: 0.0333 | I146: 0.0333 | J146: 0 | K146: 0 | L146: 0 | M146: 0 | N146: 0 | O146: 0 | P146: 0 | Q146: 0 | R146: 0 | S146: 0 | T146: 0 | U146: 0 | V146: 0 | W146: 0 | X146: 0 | Y146: 0 | Z146: 0 | AA146: 0 | AB146: 0 | AC146: 0 | AD146: 0 | AE146: 0 | AF146: 0 | AG146: 0 | AH146: 0 | AI146: 0 | AJ146: 0 | AK146: 0 | AL146: 0 | AM146: 0
C147: Interest Margin (Municipality) | D147: % p.a. | F147: =$E$50*F78 -> 0.0367 | G147: =$E$50*G78 -> 0.0367 | H147: =$E$50*H78 -> 0.0367 | I147: =$E$50*I78 -> 0.0367 | J147: =$E$49*J78 -> 0 | K147: 0 | L147: 0 | M147: 0 | N147: 0 | O147: 0 | P147: 0 | Q147: 0 | R147: 0 | S147: 0 | T147: 0 | U147: 0 | V147: 0 | W147: 0 | X147: 0 | Y147: 0 | Z147: 0 | AA147: 0 | AB147: 0 | AC147: 0 | AD147: 0 | AE147: 0 | AF147: 0 | AG147: 0 | AH147: 0 | AI147: 0 | AJ147: 0 | AK147: 0 | AL147: 0 | AM147: 0
C148: All-in-Rate (Municipality) | D148: % p.a. | F148: =SUM(F146:F147) -> 0.07 | G148: =SUM(G146:G147) -> 0.07 | H148: 0.07 | I148: 0.07 | J148: 0 | K148: 0 | L148: 0 | M148: 0 | N148: 0 | O148: 0 | P148: 0 | Q148: 0 | R148: 0 | S148: 0 | T148: 0 | U148: 0 | V148: 0 | W148: 0 | X148: 0 | Y148: 0 | Z148: 0 | AA148: 0 | AB148: 0 | AC148: 0 | AD148: 0 | AE148: 0 | AF148: 0 | AG148: 0 | AH148: 0 | AI148: 0 | AJ148: 0 | AK148: 0 | AL148: 0 | AM148: 0
C149: All-in-Rate (Municipality) | D149: % p.p. | F149: =(1+F148)^(F86/365)-1 -> 0.04046565515 | G149: 0.07019836018 | H149: 0.07 | I149: 0.07 | J149: 0 | K149: 0 | L149: 0 | M149: 0 | N149: 0 | O149: 0 | P149: 0 | Q149: 0 | R149: 0 | S149: 0 | T149: 0 | U149: 0 | V149: 0 | W149: 0 | X149: 0 | Y149: 0 | Z149: 0 | AA149: 0 | AB149: 0 | AC149: 0 | AD149: 0 | AE149: 0 | AF149: 0 | AG149: 0 | AH149: 0 | AI149: 0 | AJ149: 0 | AK149: 0 | AL149: 0 | AM149: 0
C151: Interest during construction for SPV | D151: USD | E151: =SUM(F151:AM151) -> 59752.04576 | F151: =F144*F123 -> 0 | G151: 2651.803346 | H151: 14065.57385 | I151: 43034.66857 | J151: 0 | K151: 0 | L151: 0 | M151: 0 | N151: 0 | O151: 0 | P151: 0 | Q151: 0 | R151: 0 | S151: 0 | T151: 0 | U151: 0 | V151: 0 | W151: 0 | X151: 0 | Y151: 0 | Z151: 0 | AA151: 0 | AB151: 0 | AC151: 0 | AD151: 0 | AE151: 0 | AF151: 0 | AG151: 0 | AH151: 0 | AI151: 0 | AJ151: 0 | AK151: 0 | AL151: 0 | AM151: 0
C152: Interest during construction for Municipality | E152: =SUM(F152:AM152) -> 8776083.907 | F152: =F149*F129 -> 0 | G152: 394403.1326 | H152: 2077895.903 | I152: 6303784.872 | J152: 0 | K152: 0 | L152: 0 | M152: 0 | N152: 0 | O152: 0 | P152: 0 | Q152: 0 | R152: 0 | S152: 0 | T152: 0 | U152: 0 | V152: 0 | W152: 0 | X152: 0 | Y152: 0 | Z152: 0 | AA152: 0 | AB152: 0 | AC152: 0 | AD152: 0 | AE152: 0 | AF152: 0 | AG152: 0 | AH152: 0 | AI152: 0 | AJ152: 0 | AK152: 0 | AL152: 0 | AM152: 0
C154: Operations
C155: Revenue
C156: Revenue | D156: USD | E156: =SUM(F156:AM156) -> 255903183.9 | F156: ='Global Financial Model'!C81 -> 0 | G156: ='Global Financial Model'!D81 -> 0 | H156: ='Global Financial Model'!E81 -> 0 | I156: ='Global Financial Model'!F81 -> 0 | J156: ='Global Financial Model'!G81 -> 3617073.426 | K156: ='Global Financial Model'!H81 -> 4785164.568 | L156: ='Global Financial Model'!I81 -> 5096919.336 | M156: ='Global Financial Model'!J81 -> 5196567.275 | N156: ='Global Financial Model'!K81 -> 5504986.635 | O156: ='Global Financial Model'!L81 -> 5608660.352 | P156: ='Global Financial Model'!M81 -> 5937706.785 | Q156: ='Global Financial Model'!N81 -> 6047751.034 | R156: ='Global Financial Model'!O81 -> 6400946.248 | S156: ='Global Financial Model'!P81 -> 6515436.285 | T156: ='Global Financial Model'!Q81 -> 6891924.172 | U156: ='Global Financial Model'!R81 -> 7011039.606 | V156: ='Global Financial Model'!S81 -> 7457718.64 | W156: ='Global Financial Model'!T81 -> 7627239.234 | X156: ='Global Financial Model'!U81 -> 8105415.427 | Y156: ='Global Financial Model'!V81 -> 8281784.653 | Z156: ='Global Financial Model'!W81 -> 8793273.924 | AA156: ='Global Financial Model'!X81 -> 9058633.76 | AB156: ='Global Financial Model'!Y81 -> 9693827.355 | AC156: ='Global Financial Model'!Z81 -> 9969907.728 | AD156: ='Global Financial Model'!AA81 -> 10652793.47 | AE156: ='Global Financial Model'!AB81 -> 10940027.49 | AF156: ='Global Financial Model'!AC81 -> 11378294.25 | AG156: ='Global Financial Model'!AD81 -> 11382004.6 | AH156: ='Global Financial Model'!AE81 -> 11837977.34 | AI156: ='Global Financial Model'!AF81 -> 11841837.59 | AJ156: ='Global Financial Model'!AG81 -> 12316231.63 | AK156: ='Global Financial Model'!AH81 -> 12320247.83 | AL156: ='Global Financial Model'!AI81 -> 12813807.38 | AM156: ='Global Financial Model'!AJ81 -> 12817985.84
C157: Municipal direct subsidies (if any) | D157: USD | E157: =SUM(F157:AM157) -> 0 | F157: 0 | G157: 0 | H157: 0 | I157: 0 | J157: =$E27*(1+E32)*(1+F32)*(1+G32)*(1+H32) -> 0 | K157: =J157*(1+I32) -> 0 | L157: 0 | M157: 0 | N157: 0 | O157: 0 | P157: 0 | Q157: 0 | R157: 0 | S157: 0 | T157: 0 | U157: 0 | V157: 0 | W157: 0 | X157: 0 | Y157: 0 | Z157: 0 | AA157: 0 | AB157: 0 | AC157: 0 | AD157: 0 | AE157: 0 | AF157: 0 | AG157: 0 | AH157: 0 | AI157: 0 | AJ157: 0 | AK157: 0 | AL157: 0 | AM157: 0
C159: OpEx
C160: OpEx | D160: USD | E160: =SUM(F160:AM160) -> 180278885.4 | F160: =-'Global Financial Model'!C76 -> 0 | G160: =-'Global Financial Model'!D76 -> 0 | H160: =-'Global Financial Model'!E76 -> 0 | I160: =-'Global Financial Model'!F76 -> 0 | J160: =-'Global Financial Model'!G76 -> 3476732.433 | K160: =-'Global Financial Model'!H76 -> 3328674.036 | L160: =-'Global Financial Model'!I76 -> 3655735.643 | M160: =-'Global Financial Model'!J76 -> 3742044.432 | N160: =-'Global Financial Model'!K76 -> 7795071.625 | O160: =-'Global Financial Model'!L76 -> 3920950.033 | P160: =-'Global Financial Model'!M76 -> 4013650.228 | Q160: =-'Global Financial Model'!N76 -> 4108586.437 | R160: =-'Global Financial Model'!O76 -> 4205813.642 | S160: =-'Global Financial Model'!P76 -> 8661534.572 | T160: =-'Global Financial Model'!Q76 -> 4407367.891 | U160: =-'Global Financial Model'!R76 -> 4511811.926 | V160: =-'Global Financial Model'!S76 -> 4618781.011 | W160: =-'Global Financial Model'!T76 -> 4728337.374 | X160: =-'Global Financial Model'!U76 -> 9626860.809 | Y160: =-'Global Financial Model'!V76 -> 4955468.687 | Z160: =-'Global Financial Model'!W76 -> 5073176.06 | AA160: =-'Global Financial Model'!X76 -> 5193735.637 | AB160: =-'Global Financial Model'!Y76 -> 5317217.862 | AC160: =-'Global Financial Model'!Z76 -> 10702661.51 | AD160: =-'Global Financial Model'!AA76 -> 5573240.934 | AE160: =-'Global Financial Model'!AB76 -> 5705931.709 | AF160: =-'Global Financial Model'!AC76 -> 5841845.08 | AG160: =-'Global Financial Model'!AD76 -> 5981060.813 | AH160: =-'Global Financial Model'!AE76 -> 11901954.04 | AI160: =-'Global Financial Model'!AF76 -> 6269728.534 | AJ160: =-'Global Financial Model'!AG76 -> 6419350.311 | AK160: =-'Global Financial Model'!AH76 -> 6572614.137 | AL160: =-'Global Financial Model'!AI76 -> 6729610.357 | AM160: =-'Global Financial Model'!AJ76 -> 13239337.64
C162: Operation: Debt
C163: Balance B/f (SPV) | D163: USD | F163: =E166 -> 0 | G163: =F166 -> 0 | H163: 0 | I163: 0 | J163: 747815.1943 | K163: 721000.3005 | L163: 692352.173 | M163: 661649.8584 | N163: 628798.3818 | O163: 593647.3018 | P163: 556075.1651 | Q163: 515827.8333 | R163: 472763.1883 | S163: 426684.0182 | T163: 377409.1827 | U163: 324648.9642 | V163: 268195.5304 | W163: 207790.3562 | X163: 143169.3402 | Y163: 74005.40771 | Z163: 0 | AA163: =Z166 -> 0 | AB163: =AA166 -> 0 | AC163: 0 | AD163: 0 | AE163: 0 | AF163: 0 | AG163: 0 | AH163: 0 | AI163: 0 | AJ163: 0 | AK163: 0 | AL163: 0 | AM163: 0
C164: Refinance @ Completion (SPV) | D164: USD | E164: =SUM(F164:AM164) -> 747815.1943 | F164: =-F126 -> 0 | G164: 0 | H164: 0 | I164: 747815.1943 | J164: 0 | K164: 0 | L164: 0 | M164: 0 | N164: 0 | O164: 0 | P164: 0 | Q164: 0 | R164: 0 | S164: 0 | T164: 0 | U164: 0 | V164: 0 | W164: 0 | X164: 0 | Y164: 0 | Z164: 0 | AA164: 0 | AB164: 0 | AC164: 0 | AD164: 0 | AE164: 0 | AF164: 0 | AG164: 0 | AH164: 0 | AI164: 0 | AJ164: 0 | AK164: 0 | AL164: 0 | AM164: 0
C165: Repayments during operation (SPV) | D165: USD | E165: =SUM(F165:AM165) -> -747815.1943 | F165: =IF(F79=1,-F198,0) -> 0 | G165: =IF(G79=1,-G198,0) -> 0 | H165: 0 | I165: 0 | J165: -26814.8938 | K165: -28648.12748 | L165: -30702.31462 | M165: -32851.47664 | N165: -35151.08 | O165: -37572.13668 | P165: -40247.33178 | Q165: -43064.645 | R165: -46079.17015 | S165: -49274.83543 | T165: -52760.21854 | U165: -56453.43383 | V165: -60405.1742 | W165: -64621.016 | X165: -69163.93244 | Y165: -74005.40771 | Z165: 0 | AA165: 0 | AB165: 0 | AC165: 0 | AD165: 0 | AE165: 0 | AF165: 0 | AG165: 0 | AH165: 0 | AI165: 0 | AJ165: 0 | AK165: 0 | AL165: 0 | AM165: 0
C166: Balance C/f (SPV) | D166: USD | F166: =SUM(F163:F165) -> 0 | G166: =SUM(G163:G165) -> 0 | H166: 0 | I166: 747815.1943 | J166: 721000.3005 | K166: 692352.173 | L166: 661649.8584 | M166: 628798.3818 | N166: 593647.3018 | O166: 556075.1651 | P166: 515827.8333 | Q166: 472763.1883 | R166: 426684.0182 | S166: 377409.1827 | T166: 324648.9642 | U166: 268195.5304 | V166: 207790.3562 | W166: 143169.3402 | X166: 74005.40771 | Y166: 0 | Z166: 0 | AA166: 0 | AB166: =SUM(AB163:AB165) -> 0 | AC166: 0 | AD166: 0 | AE166: 0 | AF166: 0 | AG166: 0 | AH166: 0 | AI166: 0 | AJ166: 0 | AK166: 0 | AL166: 0 | AM166: 0
C168: Balance B/f (Municipality) | D168: USD | F168: =E171 -> 0 | G168: =F171 -> 0 | H168: 0 | I168: 0 | J168: 109941613.4 | K168: 104482919.1 | L168: 98648931.5 | M168: 92398840.54 | N168: 85711243.2 | O168: 78555514.06 | P168: 70904351.74 | Q168: 62711125.61 | R168: 53944373.65 | S168: 44563949.05 | T168: 34529842.46 | U168: 23789277.45 | V168: 12296872.88 | W168: 0 | X168: 0 | Y168: 0 | Z168: 0 | AA168: 0 | AB168: 0 | AC168: 0 | AD168: 0 | AE168: 0 | AF168: 0 | AG168: 0 | AH168: 0 | AI168: 0 | AJ168: 0 | AK168: 0 | AL168: 0 | AM168: 0
C169: Refinance @ Completion (Municipality) | D169: USD | E169: =SUM(F169:AM169) -> 109941613.4 | F169: =-F132 -> 0 | G169: 0 | H169: 0 | I169: 109941613.4 | J169: 0 | K169: 0 | L169: 0 | M169: 0 | N169: 0 | O169: 0 | P169: 0 | Q169: 0 | R169: 0 | S169: 0 | T169: 0 | U169: 0 | V169: 0 | W169: 0 | X169: 0 | Y169: 0 | Z169: 0 | AA169: 0 | AB169: 0 | AC169: 0 | AD169: 0 | AE169: 0 | AF169: 0 | AG169: 0 | AH169: 0 | AI169: 0 | AJ169: 0 | AK169: 0 | AL169: 0 | AM169: 0
C170: Repayments during operation (Municipality) | D170: USD | E170: =SUM(F170:AM170) -> -109941613.4 | F170: =IF(F79=1,-F204,0) -> 0 | G170: =IF(G79=1,-G204,0) -> 0 | H170: 0 | I170: 0 | J170: -5458694.352 | K170: -5833987.574 | L170: -6250090.965 | M170: -6687597.333 | N170: -7155729.146 | O170: -7651162.322 | P170: -8193226.129 | Q170: -8766751.958 | R170: -9380424.595 | S170: -10034106.59 | T170: -10740565.01 | U170: -11492404.56 | V170: -12296872.88 | W170: 0 | X170: 0 | Y170: 0 | Z170: 0 | AA170: 0 | AB170: 0 | AC170: 0 | AD170: 0 | AE170: 0 | AF170: 0 | AG170: 0 | AH170: 0 | AI170: 0 | AJ170: 0 | AK170: 0 | AL170: 0 | AM170: 0
C171: Balance C/f (Municipality | D171: USD | F171: =SUM(F168:F170) -> 0 | G171: =SUM(G168:G170) -> 0 | H171: 0 | I171: 109941613.4 | J171: 104482919.1 | K171: 98648931.5 | L171: 92398840.54 | M171: 85711243.2 | N171: 78555514.06 | O171: 70904351.74 | P171: 62711125.61 | Q171: 53944373.65 | R171: 44563949.05 | S171: 34529842.46 | T171: 23789277.45 | U171: 12296872.88 | V171: 0 | W171: 0 | X171: 0 | Y171: 0 | Z171: 0 | AA171: 0 | AB171: 0 | AC171: 0 | AD171: 0 | AE171: 0 | AF171: 0 | AG171: 0 | AH171: 0 | AI171: 0 | AJ171: 0 | AK171: 0 | AL171: 0 | AM171: 0
C173: BBSY | D173: % p.a. | F173: =LOOKUP(F87,$E$64:$AL$64,$E$65:$AL$65)*F79 -> 0 | G173: =LOOKUP(G87,$E$64:$H$64,$E$65:$H$65)*G79 -> 0 | H173: 0 | I173: 0 | J173: 0.0333 | K173: 0.0333 | L173: 0.0333 | M173: 0.0333 | N173: 0.0333 | O173: 0.0333 | P173: 0.0333 | Q173: 0.0333 | R173: 0.0333 | S173: 0.0333 | T173: 0.0333 | U173: 0.0333 | V173: 0.0333 | W173: 0.0333 | X173: 0.0333 | Y173: 0.0333 | Z173: 0.0333 | AA173: 0.0333 | AB173: 0.0333 | AC173: 0.0333 | AD173: 0.0333 | AE173: 0.0333 | AF173: 0.0333 | AG173: 0.0333 | AH173: 0.0333 | AI173: 0.0333 | AJ173: 0.0333 | AK173: 0.0333 | AL173: 0.0333 | AM173: 0.0333
C174: Interest Margin (SPV) | D174: % p.a. | F174: =IF(F88=0,0,LOOKUP(F88,$E$48:$I$48,$E$49:$I$49)) -> 0 | G174: 0 | H174: 0 | I174: 0 | J174: 0.0367 | K174: 0.0367 | L174: 0.0367 | M174: 0.0367 | N174: 0.0367 | O174: 0.0367 | P174: 0.0367 | Q174: 0.0367 | R174: 0.0367 | S174: 0.0367 | T174: 0.0367 | U174: 0.0367 | V174: 0.0367 | W174: 0.0367 | X174: 0.0367 | Y174: 0.0367 | Z174: 0.0367 | AA174: 0.0367 | AB174: 0.0367 | AC174: 0.0367 | AD174: 0.0367 | AE174: 0.0367 | AF174: 0.0367 | AG174: 0.0367 | AH174: 0.0367 | AI174: 0.0367 | AJ174: 0.0367 | AK174: 0.0367 | AL174: 0.0367 | AM174: 0.0367
C175: All-in-Rate (SPV) | D175: % p.a. | F175: =SUM(F173:F174) -> 0 | G175: =SUM(G173:G174) -> 0 | H175: 0 | I175: 0 | J175: 0.07 | K175: 0.07 | L175: 0.07 | M175: 0.07 | N175: 0.07 | O175: 0.07 | P175: 0.07 | Q175: 0.07 | R175: 0.07 | S175: 0.07 | T175: 0.07 | U175: 0.07 | V175: 0.07 | W175: 0.07 | X175: 0.07 | Y175: 0.07 | Z175: 0.07 | AA175: 0.07 | AB175: =SUM(AB173:AB174) -> 0.07 | AC175: 0.07 | AD175: 0.07 | AE175: 0.07 | AF175: 0.07 | AG175: 0.07 | AH175: 0.07 | AI175: 0.07 | AJ175: 0.07 | AK175: 0.07 | AL175: 0.07 | AM175: 0.07
C176: All-in-Rate (SPV) | D176: % p.p. | F176: =(1+F175)^(F86/365)-1 -> 0 | G176: 0 | H176: 0 | I176: 0 | J176: 0.07 | K176: 0.07019836018 | L176: 0.07 | M176: 0.07 | N176: 0.07 | O176: 0.07019836018 | P176: 0.07 | Q176: 0.07 | R176: 0.07 | S176: 0.07019836018 | T176: 0.07 | U176: 0.07 | V176: 0.07 | W176: 0.07019836018 | X176: 0.07 | Y176: 0.07 | Z176: 0.07 | AA176: 0.07019836018 | AB176: 0.07 | AC176: 0.07 | AD176: 0.07 | AE176: 0.07019836018 | AF176: 0.07 | AG176: 0.07 | AH176: 0.07 | AI176: 0.07019836018 | AJ176: 0.07 | AK176: 0.07 | AL176: 0.07 | AM176: 0.07019836018
C178: BBSY | D178: % p.a. | F178: =LOOKUP(F87,$E$64:$AL$64,$E$66:$AL$66)*F79 -> 0 | G178: 0 | H178: 0 | I178: 0 | J178: 0.0333 | K178: 0.0333 | L178: 0.0333 | M178: 0.0333 | N178: 0.0333 | O178: 0.0333 | P178: 0.0333 | Q178: 0.0333 | R178: 0.0333 | S178: 0.0333 | T178: 0.0333 | U178: 0.0333 | V178: 0.0333 | W178: 0.0333 | X178: 0.0333 | Y178: 0.0333 | Z178: 0.0333 | AA178: 0.0333 | AB178: 0.0333 | AC178: 0.0333 | AD178: 0.0333 | AE178: 0.0333 | AF178: 0.0333 | AG178: 0.0333 | AH178: 0.0333 | AI178: 0.0333 | AJ178: 0.0333 | AK178: 0.0333 | AL178: 0.0333 | AM178: 0.0333
C179: Interest Margin (Municipality) | D179: % p.a. | F179: =IF(F88=0,0,LOOKUP(F88,$E$48:$I$48,$E$49:$I$49)) -> 0 | G179: 0 | H179: 0 | I179: 0 | J179: =IF(J88=0,0,LOOKUP(J88,$E$48:$I$48,$E$50:$I$50)) -> 0.0367 | K179: =IF(K88=0,0,LOOKUP(K88,$E$48:$I$48,$E$50:$I$50)) -> 0.0367 | L179: 0.0367 | M179: 0.0367 | N179: 0.0367 | O179: 0.0367 | P179: 0.0367 | Q179: 0.0367 | R179: 0.0367 | S179: 0.0367 | T179: 0.0367 | U179: 0.0367 | V179: 0.0367 | W179: 0.0367 | X179: 0.0367 | Y179: 0.0367 | Z179: 0.0367 | AA179: 0.0367 | AB179: 0.0367 | AC179: 0.0367 | AD179: 0.0367 | AE179: 0.0367 | AF179: 0.0367 | AG179: 0.0367 | AH179: 0.0367 | AI179: 0.0367 | AJ179: 0.0367 | AK179: 0.0367 | AL179: 0.0367 | AM179: 0.0367
C180: All-in-Rate (Municipality) | D180: % p.a. | F180: =SUM(F178:F179) -> 0 | G180: =SUM(G178:G179) -> 0 | H180: 0 | I180: 0 | J180: 0.07 | K180: 0.07 | L180: 0.07 | M180: 0.07 | N180: 0.07 | O180: 0.07 | P180: 0.07 | Q180: 0.07 | R180: 0.07 | S180: 0.07 | T180: 0.07 | U180: 0.07 | V180: 0.07 | W180: 0.07 | X180: 0.07 | Y180: 0.07 | Z180: 0.07 | AA180: 0.07 | AB180: 0.07 | AC180: 0.07 | AD180: 0.07 | AE180: 0.07 | AF180: 0.07 | AG180: 0.07 | AH180: 0.07 | AI180: 0.07 | AJ180: 0.07 | AK180: 0.07 | AL180: 0.07 | AM180: 0.07
C181: All-in-Rate (Municipality) | D181: % p.p. | F181: =(1+F180)^(F86/365)-1 -> 0 | G181: 0 | H181: 0 | I181: 0 | J181: 0.07 | K181: 0.07019836018 | L181: 0.07 | M181: 0.07 | N181: 0.07 | O181: 0.07019836018 | P181: 0.07 | Q181: 0.07 | R181: 0.07 | S181: 0.07019836018 | T181: 0.07 | U181: 0.07 | V181: 0.07 | W181: 0.07019836018 | X181: 0.07 | Y181: 0.07 | Z181: 0.07 | AA181: 0.07019836018 | AB181: 0.07 | AC181: 0.07 | AD181: 0.07 | AE181: 0.07019836018 | AF181: 0.07 | AG181: 0.07 | AH181: 0.07 | AI181: 0.07019836018 | AJ181: 0.07 | AK181: 0.07 | AL181: 0.07 | AM181: 0.07019836018
C183: Interest during Operation for SPV | D183: USD | E183: =SUM(F183:AM183) -> 519214.8819 | F183: =F176*F163 -> 0 | G183: 0 | H183: 0 | I183: 0 | J183: 52347.0636 | K183: 50613.03878 | L183: 48464.65211 | M183: 46315.49009 | N183: 44015.88672 | O183: 41673.06711 | P183: 38925.26156 | Q183: 36107.94833 | R183: 33093.42318 | S183: 29952.51839 | T183: 26418.64279 | U183: 22725.42749 | V183: 18773.68712 | W183: 14586.54226 | X183: 10021.85381 | Y183: 5180.37854 | Z183: 0 | AA183: 0 | AB183: 0 | AC183: 0 | AD183: 0 | AE183: 0 | AF183: 0 | AG183: 0 | AH183: 0 | AI183: 0 | AJ183: 0 | AK183: 0 | AL183: 0 | AM183: 0
C184: Interest during Operation for Municipality | D184: USD | E184: =SUM(F184:AM184) -> 61118667.07 | F184: =F181*F168 -> 0 | G184: =G181*G168 -> 0 | H184: 0 | I184: 0 | J184: 7695912.94 | K184: 7334529.585 | L184: 6905425.205 | M184: 6467918.838 | N184: 5999787.024 | O184: 5514468.27 | P184: 4963304.621 | Q184: 4389778.792 | R184: 3776106.155 | S184: 3128316.147 | T184: 2417088.972 | U184: 1665249.421 | V184: 860781.1019 | W184: 0 | X184: 0 | Y184: 0 | Z184: 0 | AA184: 0 | AB184: 0 | AC184: 0 | AD184: 0 | AE184: 0 | AF184: 0 | AG184: 0 | AH184: 0 | AI184: 0 | AJ184: 0 | AK184: 0 | AL184: 0 | AM184: 0
C186: Debt repayment
C188: Flag: Municipal Debt Repayment | D188: =SUM(F188:AM188) -> 16 | F188: =F97 -> 0 | G188: =G97 -> 1 | H188: =H97 -> 1 | I188: 1 | J188: 1 | K188: 1 | L188: 1 | M188: 1 | N188: 1 | O188: 1 | P188: 1 | Q188: 1 | R188: 1 | S188: 1 | T188: 1 | U188: 1 | V188: 1 | W188: 0 | X188: 0 | Y188: 0 | Z188: 0 | AA188: 0 | AB188: 0 | AC188: 0 | AD188: 0 | AE188: 0 | AF188: 0 | AG188: 0 | AH188: 0 | AI188: 0 | AJ188: 0 | AK188: 0 | AL188: 0 | AM188: 0
C189: Remaining Repayments | F189: =IF(F188=0,0,$D188-SUM($E188:E188)) -> 0 | G189: =IF(G188=0,0,$D188-SUM($E188:F188)) -> 16 | H189: =IF(H188=0,0,$D188-SUM($E188:G188)) -> 15 | I189: =IF(I188=0,0,$D188-SUM($E188:H188)) -> 14 | J189: =IF(J188=0,0,$D188-SUM($E188:I188)) -> 13 | K189: =IF(K188=0,0,$D188-SUM($E188:J188)) -> 12 | L189: =IF(L188=0,0,$D188-SUM($E188:K188)) -> 11 | M189: =IF(M188=0,0,$D188-SUM($E188:L188)) -> 10 | N189: =IF(N188=0,0,$D188-SUM($E188:M188)) -> 9 | O189: =IF(O188=0,0,$D188-SUM($E188:N188)) -> 8 | P189: =IF(P188=0,0,$D188-SUM($E188:O188)) -> 7 | Q189: =IF(Q188=0,0,$D188-SUM($E188:P188)) -> 6 | R189: =IF(R188=0,0,$D188-SUM($E188:Q188)) -> 5 | S189: =IF(S188=0,0,$D188-SUM($E188:R188)) -> 4 | T189: =IF(T188=0,0,$D188-SUM($E188:S188)) -> 3 | U189: =IF(U188=0,0,$D188-SUM($E188:T188)) -> 2 | V189: =IF(V188=0,0,$D188-SUM($E188:U188)) -> 1 | W189: =IF(W188=0,0,$D188-SUM($E188:V188)) -> 0 | X189: =IF(X188=0,0,$D188-SUM($E188:W188)) -> 0 | Y189: =IF(Y188=0,0,$D188-SUM($E188:X188)) -> 0 | Z189: =IF(Z188=0,0,$D188-SUM($E188:Y188)) -> 0 | AA189: =IF(AA188=0,0,$D188-SUM($E188:Z188)) -> 0 | AB189: =IF(AB188=0,0,$D188-SUM($E188:AA188)) -> 0 | AC189: =IF(AC188=0,0,$D188-SUM($E188:AB188)) -> 0 | AD189: =IF(AD188=0,0,$D188-SUM($E188:AC188)) -> 0 | AE189: =IF(AE188=0,0,$D188-SUM($E188:AD188)) -> 0 | AF189: =IF(AF188=0,0,$D188-SUM($E188:AE188)) -> 0 | AG189: =IF(AG188=0,0,$D188-SUM($E188:AF188)) -> 0 | AH189: =IF(AH188=0,0,$D188-SUM($E188:AG188)) -> 0 | AI189: =IF(AI188=0,0,$D188-SUM($E188:AH188)) -> 0 | AJ189: =IF(AJ188=0,0,$D188-SUM($E188:AI188)) -> 0 | AK189: =IF(AK188=0,0,$D188-SUM($E188:AJ188)) -> 0 | AL189: =IF(AL188=0,0,$D188-SUM($E188:AK188)) -> 0 | AM189: =IF(AM188=0,0,$D188-SUM($E188:AL188)) -> 0
C191: Flag: Private Debt Repayment | D191: =SUM(F191:AM191) -> 16 | F191: =F98 -> 0 | G191: 0 | H191: 0 | I191: 0 | J191: 1 | K191: 1 | L191: 1 | M191: 1 | N191: 1 | O191: 1 | P191: 1 | Q191: 1 | R191: 1 | S191: 1 | T191: 1 | U191: 1 | V191: 1 | W191: 1 | X191: 1 | Y191: 1 | Z191: 0 | AA191: 0 | AB191: 0 | AC191: 0 | AD191: 0 | AE191: 0 | AF191: 0 | AG191: 0 | AH191: 0 | AI191: 0 | AJ191: 0 | AK191: 0 | AL191: 0 | AM191: 0
C192: Remaining Repayments | F192: =IF(F191=0,0,$D191-SUM($E191:E191)) -> 0 | G192: =IF(G191=0,0,$D191-SUM($E191:F191)) -> 0 | H192: =IF(H191=0,0,$D191-SUM($E191:G191)) -> 0 | I192: =IF(I191=0,0,$D191-SUM($E191:H191)) -> 0 | J192: =IF(J191=0,0,$D191-SUM($E191:I191)) -> 16 | K192: =IF(K191=0,0,$D191-SUM($E191:J191)) -> 15 | L192: =IF(L191=0,0,$D191-SUM($E191:K191)) -> 14 | M192: =IF(M191=0,0,$D191-SUM($E191:L191)) -> 13 | N192: =IF(N191=0,0,$D191-SUM($E191:M191)) -> 12 | O192: =IF(O191=0,0,$D191-SUM($E191:N191)) -> 11 | P192: =IF(P191=0,0,$D191-SUM($E191:O191)) -> 10 | Q192: =IF(Q191=0,0,$D191-SUM($E191:P191)) -> 9 | R192: =IF(R191=0,0,$D191-SUM($E191:Q191)) -> 8 | S192: =IF(S191=0,0,$D191-SUM($E191:R191)) -> 7 | T192: =IF(T191=0,0,$D191-SUM($E191:S191)) -> 6 | U192: =IF(U191=0,0,$D191-SUM($E191:T191)) -> 5 | V192: =IF(V191=0,0,$D191-SUM($E191:U191)) -> 4 | W192: =IF(W191=0,0,$D191-SUM($E191:V191)) -> 3 | X192: =IF(X191=0,0,$D191-SUM($E191:W191)) -> 2 | Y192: =IF(Y191=0,0,$D191-SUM($E191:X191)) -> 1 | Z192: =IF(Z191=0,0,$D191-SUM($E191:Y191)) -> 0 | AA192: =IF(AA191=0,0,$D191-SUM($E191:Z191)) -> 0 | AB192: =IF(AB191=0,0,$D191-SUM($E191:AA191)) -> 0 | AC192: =IF(AC191=0,0,$D191-SUM($E191:AB191)) -> 0 | AD192: =IF(AD191=0,0,$D191-SUM($E191:AC191)) -> 0 | AE192: =IF(AE191=0,0,$D191-SUM($E191:AD191)) -> 0 | AF192: =IF(AF191=0,0,$D191-SUM($E191:AE191)) -> 0 | AG192: =IF(AG191=0,0,$D191-SUM($E191:AF191)) -> 0 | AH192: =IF(AH191=0,0,$D191-SUM($E191:AG191)) -> 0 | AI192: =IF(AI191=0,0,$D191-SUM($E191:AH191)) -> 0 | AJ192: =IF(AJ191=0,0,$D191-SUM($E191:AI191)) -> 0 | AK192: =IF(AK191=0,0,$D191-SUM($E191:AJ191)) -> 0 | AL192: =IF(AL191=0,0,$D191-SUM($E191:AK191)) -> 0 | AM192: =IF(AM191=0,0,$D191-SUM($E191:AL191)) -> 0
C194: Balance B/f | F194: =IF(F78=1,F123,F163) -> 0 | G194: 37775.85886 | H194: 200936.7692 | I194: 614780.9796 | J194: 747815.1943 | K194: 721000.3005 | L194: 692352.173 | M194: 661649.8584 | N194: 628798.3818 | O194: 593647.3018 | P194: 556075.1651 | Q194: 515827.8333 | R194: 472763.1883 | S194: 426684.0182 | T194: 377409.1827 | U194: 324648.9642 | V194: 268195.5304 | W194: 207790.3562 | X194: 143169.3402 | Y194: 74005.40771 | Z194: 0 | AA194: 0 | AB194: 0 | AC194: 0 | AD194: 0 | AE194: 0 | AF194: 0 | AG194: 0 | AH194: 0 | AI194: 0 | AJ194: 0 | AK194: 0 | AL194: 0 | AM194: 0
C195: All-In Rate | D195: % p.p. | F195: =IF(F78=1,F144,F176) -> 0.04046565515 | G195: 0.07019836018 | H195: 0.07 | I195: 0.07 | J195: 0.07 | K195: 0.07019836018 | L195: 0.07 | M195: 0.07 | N195: 0.07 | O195: 0.07019836018 | P195: 0.07 | Q195: 0.07 | R195: 0.07 | S195: 0.07019836018 | T195: 0.07 | U195: 0.07 | V195: 0.07 | W195: 0.07019836018 | X195: 0.07 | Y195: 0.07 | Z195: 0.07 | AA195: 0.07019836018 | AB195: 0.07 | AC195: 0.07 | AD195: 0.07 | AE195: 0.07019836018 | AF195: 0.07 | AG195: 0.07 | AH195: 0.07 | AI195: 0.07019836018 | AJ195: 0.07 | AK195: 0.07 | AL195: 0.07 | AM195: 0.07019836018
C196: Annuity Payment (SPV) | E196: =SUM(F196:AM196) -> 1267030.076 | F196: =IF(F191=0,0,F195*F194/(1-(1+F195)^(-F192))) -> 0 | G196: =IF(G191=0,0,G195*G194/(1-(1+G195)^(-G192))) -> 0 | H196: 0 | I196: 0 | J196: 79161.9574 | K196: 79261.16626 | L196: 79166.96673 | M196: 79166.96673 | N196: 79166.96673 | O196: 79245.20378 | P196: 79172.59333 | Q196: 79172.59333 | R196: 79172.59333 | S196: 79227.35382 | T196: 79178.86133 | U196: 79178.86133 | V196: 79178.86133 | W196: 79207.55827 | X196: 79185.78625 | Y196: 79185.78625 | Z196: 0 | AA196: 0 | AB196: 0 | AC196: 0 | AD196: 0 | AE196: 0 | AF196: 0 | AG196: 0 | AH196: 0 | AI196: 0 | AJ196: 0 | AK196: 0 | AL196: 0 | AM196: 0
C197: less: Interest (SPV) | E197: =SUM(F197:AM197) -> -519214.8819 | F197: =IF(F191=0,0,-F183) -> 0 | G197: =IF(G191=0,0,-G183) -> 0 | H197: =IF(H191=0,0,-H183) -> 0 | I197: 0 | J197: -52347.0636 | K197: -50613.03878 | L197: -48464.65211 | M197: -46315.49009 | N197: -44015.88672 | O197: -41673.06711 | P197: -38925.26156 | Q197: -36107.94833 | R197: -33093.42318 | S197: -29952.51839 | T197: -26418.64279 | U197: -22725.42749 | V197: -18773.68712 | W197: -14586.54226 | X197: -10021.85381 | Y197: -5180.37854 | Z197: =IF(Z191=0,0,-Z183) -> 0 | AA197: =IF(AA191=0,0,-AA183) -> 0 | AB197: =IF(AB191=0,0,-AB183) -> 0 | AC197: 0 | AD197: 0 | AE197: 0 | AF197: 0 | AG197: 0 | AH197: 0 | AI197: 0 | AJ197: 0 | AK197: 0 | AL197: 0 | AM197: 0
C198: Principal Repayment (SPV) | E198: =SUM(F198:AM198) -> 747815.1943 | F198: =IF(F196=0,0,SUM(F196:F197)) -> 0 | G198: =IF(G196=0,0,SUM(G196:G197)) -> 0 | H198: 0 | I198: 0 | J198: 26814.8938 | K198: =IF(K196=0,0,SUM(K196:K197)) -> 28648.12748 | L198: =IF(L196=0,0,SUM(L196:L197)) -> 30702.31462 | M198: =IF(M196=0,0,SUM(M196:M197)) -> 32851.47664 | N198: 35151.08 | O198: =IF(O196=0,0,SUM(O196:O197)) -> 37572.13668 | P198: =IF(P196=0,0,SUM(P196:P197)) -> 40247.33178 | Q198: =IF(Q196=0,0,SUM(Q196:Q197)) -> 43064.645 | R198: 46079.17015 | S198: =IF(S196=0,0,SUM(S196:S197)) -> 49274.83543 | T198: =IF(T196=0,0,SUM(T196:T197)) -> 52760.21854 | U198: =IF(U196=0,0,SUM(U196:U197)) -> 56453.43383 | V198: 60405.1742 | W198: =IF(W196=0,0,SUM(W196:W197)) -> 64621.016 | X198: =IF(X196=0,0,SUM(X196:X197)) -> 69163.93244 | Y198: =IF(Y196=0,0,SUM(Y196:Y197)) -> 74005.40771 | Z198: 0 | AA198: =IF(AA196=0,0,SUM(AA196:AA197)) -> 0 | AB198: =IF(AB196=0,0,SUM(AB196:AB197)) -> 0 | AC198: =IF(AC196=0,0,SUM(AC196:AC197)) -> 0 | AD198: 0 | AE198: =IF(AE196=0,0,SUM(AE196:AE197)) -> 0 | AF198: =IF(AF196=0,0,SUM(AF196:AF197)) -> 0 | AG198: =IF(AG196=0,0,SUM(AG196:AG197)) -> 0 | AH198: 0 | AI198: =IF(AI196=0,0,SUM(AI196:AI197)) -> 0 | AJ198: =IF(AJ196=0,0,SUM(AJ196:AJ197)) -> 0 | AK198: =IF(AK196=0,0,SUM(AK196:AK197)) -> 0 | AL198: 0 | AM198: =IF(AM196=0,0,SUM(AM196:AM197)) -> 0
C200: Balance B/f | F200: =IF(F78=1,F129,F168) -> 0 | G200: 5618409.484 | H200: 29684227.18 | I200: 90054069.6 | J200: 109941613.4 | K200: 104482919.1 | L200: 98648931.5 | M200: 92398840.54 | N200: 85711243.2 | O200: 78555514.06 | P200: 70904351.74 | Q200: 62711125.61 | R200: 53944373.65 | S200: 44563949.05 | T200: 34529842.46 | U200: 23789277.45 | V200: 12296872.88 | W200: 0 | X200: 0 | Y200: 0 | Z200: 0 | AA200: 0 | AB200: 0 | AC200: 0 | AD200: 0 | AE200: 0 | AF200: 0 | AG200: 0 | AH200: 0 | AI200: 0 | AJ200: 0 | AK200: 0 | AL200: 0 | AM200: 0
C201: All-In Rate | D201: % p.p. | F201: =IF(F78=1,F149,F181) -> 0.04046565515 | G201: 0.07019836018 | H201: 0.07 | I201: 0.07 | J201: 0.07 | K201: 0.07019836018 | L201: 0.07 | M201: 0.07 | N201: 0.07 | O201: 0.07019836018 | P201: 0.07 | Q201: 0.07 | R201: 0.07 | S201: 0.07019836018 | T201: 0.07 | U201: 0.07 | V201: 0.07 | W201: 0.07019836018 | X201: 0.07 | Y201: 0.07 | Z201: 0.07 | AA201: 0.07019836018 | AB201: 0.07 | AC201: 0.07 | AD201: 0.07 | AE201: 0.07019836018 | AF201: 0.07 | AG201: 0.07 | AH201: 0.07 | AI201: 0.07019836018 | AJ201: 0.07 | AK201: 0.07 | AL201: 0.07 | AM201: 0.07019836018
C202: Annuity Payment (Municipality) | E202: =SUM(F202:AM202) -> 185212209.7 | F202: =IF(F188=0,0,F201*F200/(1-(1+F201)^(-F189))) -> 0 | G202: =IF(G188=0,0,G201*G200/(1-(1+G201)^(-G189))) -> 595533.5354 | H202: 3259168.583 | I202: 10297227.06 | J202: 13154607.29 | K202: 13168517.16 | L202: 13155516.17 | M202: 13155516.17 | N202: 13155516.17 | O202: 13165630.59 | P202: 13156530.75 | Q202: 13156530.75 | R202: 13156530.75 | S202: 13162422.74 | T202: 13157653.99 | U202: 13157653.99 | V202: 13157653.99 | W202: 0 | X202: 0 | Y202: 0 | Z202: 0 | AA202: 0 | AB202: 0 | AC202: 0 | AD202: 0 | AE202: 0 | AF202: 0 | AG202: 0 | AH202: 0 | AI202: 0 | AJ202: 0 | AK202: 0 | AL202: 0 | AM202: 0
C203: less: Interest (Municipality) | E203: =SUM(F203:AM203) -> -69894750.98 | F203: =IF(F78=1,-F152,-F184) -> 0 | G203: =IF(G78=1,-G152,-G184) -> -394403.1326 | H203: -2077895.903 | I203: -6303784.872 | J203: -7695912.94 | K203: -7334529.585 | L203: -6905425.205 | M203: -6467918.838 | N203: -5999787.024 | O203: -5514468.27 | P203: -4963304.621 | Q203: -4389778.792 | R203: -3776106.155 | S203: -3128316.147 | T203: -2417088.972 | U203: -1665249.421 | V203: -860781.1019 | W203: 0 | X203: 0 | Y203: 0 | Z203: 0 | AA203: 0 | AB203: 0 | AC203: 0 | AD203: 0 | AE203: 0 | AF203: 0 | AG203: 0 | AH203: 0 | AI203: 0 | AJ203: 0 | AK203: 0 | AL203: 0 | AM203: 0
C204: Principal Repayment (Municipality) | E204: =SUM(F204:AM204) -> 115317458.7 | F204: =IF(F202=0,0,SUM(F202:F203)) -> 0 | G204: =IF(G202=0,0,SUM(G202:G203)) -> 201130.4028 | H204: 1181272.68 | I204: 3993442.189 | J204: 5458694.352 | K204: =IF(K202=0,0,SUM(K202:K203)) -> 5833987.574 | L204: =IF(L202=0,0,SUM(L202:L203)) -> 6250090.965 | M204: =IF(M202=0,0,SUM(M202:M203)) -> 6687597.333 | N204: 7155729.146 | O204: =IF(O202=0,0,SUM(O202:O203)) -> 7651162.322 | P204: =IF(P202=0,0,SUM(P202:P203)) -> 8193226.129 | Q204: =IF(Q202=0,0,SUM(Q202:Q203)) -> 8766751.958 | R204: 9380424.595 | S204: =IF(S202=0,0,SUM(S202:S203)) -> 10034106.59 | T204: =IF(T202=0,0,SUM(T202:T203)) -> 10740565.01 | U204: =IF(U202=0,0,SUM(U202:U203)) -> 11492404.56 | V204: 12296872.88 | W204: =IF(W202=0,0,SUM(W202:W203)) -> 0 | X204: =IF(X202=0,0,SUM(X202:X203)) -> 0 | Y204: =IF(Y202=0,0,SUM(Y202:Y203)) -> 0 | Z204: 0 | AA204: =IF(AA202=0,0,SUM(AA202:AA203)) -> 0 | AB204: =IF(AB202=0,0,SUM(AB202:AB203)) -> 0 | AC204: =IF(AC202=0,0,SUM(AC202:AC203)) -> 0 | AD204: 0 | AE204: =IF(AE202=0,0,SUM(AE202:AE203)) -> 0 | AF204: =IF(AF202=0,0,SUM(AF202:AF203)) -> 0 | AG204: =IF(AG202=0,0,SUM(AG202:AG203)) -> 0 | AH204: 0 | AI204: =IF(AI202=0,0,SUM(AI202:AI203)) -> 0 | AJ204: =IF(AJ202=0,0,SUM(AJ202:AJ203)) -> 0 | AK204: =IF(AK202=0,0,SUM(AK202:AK203)) -> 0 | AL204: 0 | AM204: =IF(AM202=0,0,SUM(AM202:AM203)) -> 0
C207: SPV Cashflow Waterfall
C208: Revenue | D208: USD | E208: =SUM(F208:AM208) -> 255903183.9 | F208: =F156 -> 0 | G208: 0 | H208: 0 | I208: 0 | J208: 3617073.426 | K208: 4785164.568 | L208: 5096919.336 | M208: 5196567.275 | N208: 5504986.635 | O208: 5608660.352 | P208: 5937706.785 | Q208: 6047751.034 | R208: 6400946.248 | S208: 6515436.285 | T208: 6891924.172 | U208: 7011039.606 | V208: 7457718.64 | W208: 7627239.234 | X208: 8105415.427 | Y208: 8281784.653 | Z208: 8793273.924 | AA208: 9058633.76 | AB208: 9693827.355 | AC208: 9969907.728 | AD208: 10652793.47 | AE208: 10940027.49 | AF208: 11378294.25 | AG208: 11382004.6 | AH208: 11837977.34 | AI208: 11841837.59 | AJ208: 12316231.63 | AK208: 12320247.83 | AL208: 12813807.38 | AM208: 12817985.84
C209: OpEx | D209: USD | E209: -180278885.4 | F209: =-F160 -> 0 | G209: 0 | H209: 0 | I209: 0 | J209: -3476732.433 | K209: -3328674.036 | L209: -3655735.643 | M209: -3742044.432 | N209: -7795071.625 | O209: -3920950.033 | P209: -4013650.228 | Q209: -4108586.437 | R209: -4205813.642 | S209: -8661534.572 | T209: -4407367.891 | U209: -4511811.926 | V209: -4618781.011 | W209: -4728337.374 | X209: -9626860.809 | Y209: -4955468.687 | Z209: -5073176.06 | AA209: -5193735.637 | AB209: -5317217.862 | AC209: -10702661.51 | AD209: -5573240.934 | AE209: -5705931.709 | AF209: -5841845.08 | AG209: -5981060.813 | AH209: -11901954.04 | AI209: -6269728.534 | AJ209: -6419350.311 | AK209: -6572614.137 | AL209: -6729610.357 | AM209: -13239337.64
C210: Operational Cashflow | D210: USD | E210: 75624298.48 | F210: =SUM(F208:F209) -> 0 | G210: =SUM(G208:G209) -> 0 | H210: =SUM(H208:H209) -> 0 | I210: 0 | J210: 140340.9929 | K210: 1456490.532 | L210: 1441183.693 | M210: 1454522.843 | N210: -2290084.99 | O210: 1687710.319 | P210: 1924056.557 | Q210: 1939164.597 | R210: 2195132.606 | S210: -2146098.287 | T210: 2484556.28 | U210: 2499227.68 | V210: 2838937.629 | W210: 2898901.86 | X210: -1521445.383 | Y210: 3326315.966 | Z210: 3720097.865 | AA210: 3864898.123 | AB210: 4376609.493 | AC210: -732753.7812 | AD210: 5079552.539 | AE210: 5234095.785 | AF210: 5536449.174 | AG210: 5400943.791 | AH210: -63976.69516 | AI210: 5572109.057 | AJ210: 5896881.315 | AK210: 5747633.692 | AL210: 6084197.027 | AM210: -421351.802
C211: Revenue Tax | D211: USD | E211: -5906463.176 | F211: ='Global Financial Model'!C90 -> 0 | G211: ='Global Financial Model'!D90 -> 0 | H211: ='Global Financial Model'!E90 -> 0 | I211: ='Global Financial Model'!F90 -> 0 | J211: ='Global Financial Model'!G90 -> 0 | K211: ='Global Financial Model'!H90 -> 0 | L211: ='Global Financial Model'!I90 -> 0 | M211: ='Global Financial Model'!J90 -> 0 | N211: ='Global Financial Model'!K90 -> 0 | O211: ='Global Financial Model'!L90 -> 0 | P211: ='Global Financial Model'!M90 -> 0 | Q211: ='Global Financial Model'!N90 -> 0 | R211: ='Global Financial Model'!O90 -> 0 | S211: ='Global Financial Model'!P90 -> 0 | T211: ='Global Financial Model'!Q90 -> 0 | U211: ='Global Financial Model'!R90 -> 0 | V211: ='Global Financial Model'!S90 -> 0 | W211: ='Global Financial Model'!T90 -> 0 | X211: ='Global Financial Model'!U90 -> 0 | Y211: ='Global Financial Model'!V90 -> -248921.5743 | Z211: ='Global Financial Model'!W90 -> -386745.2388 | AA211: ='Global Financial Model'!X90 -> -58114.66729 | AB211: ='Global Financial Model'!Y90 -> -237213.6468 | AC211: ='Global Financial Model'!Z90 -> 0 | AD211: ='Global Financial Model'!AA90 -> -483243.7128 | AE211: ='Global Financial Model'!AB90 -> -537333.8489 | AF211: ='Global Financial Model'!AC90 -> -599676.472 | AG211: ='Global Financial Model'!AD90 -> -552249.5882 | AH211: ='Global Financial Model'!AE90 -> 0 | AI211: ='Global Financial Model'!AF90 -> -612157.431 | AJ211: ='Global Financial Model'!AG90 -> -725827.7214 | AK211: ='Global Financial Model'!AH90 -> -673591.0536 | AL211: ='Global Financial Model'!AI90 -> -791388.2206 | AM211: ='Global Financial Model'!AJ90 -> 0
C212: CapEx (including intesrests during construction) | D212: USD | E212: -150784136.8 | F212: =-F114 -> -5996168.073 | G212: -25898557.2 | H212: -65689557.2 | I212: =-I114+I110 -> -25386644.63 | J212: 0 | K212: 0 | L212: 0 | M212: 0 | N212: 0 | O212: 0 | P212: 0 | Q212: 0 | R212: 0 | S212: -2288674.986 | T212: -2868686.19 | U212: 0 | V212: 0 | W212: 0 | X212: -2965373.772 | Y212: -8993404.457 | Z212: -4297393.007 | AA212: 0 | AB212: 0 | AC212: 0 | AD212: -2839973.333 | AE212: -3559703.926 | AF212: 0 | AG212: 0 | AH212: 0 | AI212: 0 | AJ212: 0 | AK212: 0 | AL212: 0 | AM212: 0
C213: Anticipated treasury | D213: USD | F213: =-F110 -> 0 | G213: =-G110 -> 0 | H213: =-H110 -> 0 | I213: -100000 | J213: 0 | K213: 0 | L213: 0 | M213: 0 | N213: 0 | O213: 0 | P213: 0 | Q213: 0 | R213: 0 | S213: 0 | T213: 0 | U213: 0 | V213: 0 | W213: 0 | X213: 0 | Y213: 0 | Z213: 0 | AA213: 0 | AB213: 0 | AC213: 0 | AD213: 0 | AE213: 0 | AF213: 0 | AG213: 0 | AH213: 0 | AI213: 0 | AJ213: 0 | AK213: 0 | AL213: 0 | AM213: 0
C214: Cashflow before Funding | D214: USD | E214: -81166301.48 | F214: =SUM(F210:F213) -> -5996168.073 | G214: =SUM(G210:G213) -> -25898557.2 | H214: =SUM(H210:H213) -> -65689557.2 | I214: -25486644.63 | J214: 140340.9929 | K214: 1456490.532 | L214: 1441183.693 | M214: 1454522.843 | N214: -2290084.99 | O214: 1687710.319 | P214: 1924056.557 | Q214: 1939164.597 | R214: 2195132.606 | S214: -4434773.273 | T214: -384129.9099 | U214: 2499227.68 | V214: 2838937.629 | W214: 2898901.86 | X214: -4486819.154 | Y214: -5916010.065 | Z214: -964040.3811 | AA214: 3806783.456 | AB214: 4139395.847 | AC214: -732753.7812 | AD214: 1756335.494 | AE214: 1137058.01 | AF214: 4936772.702 | AG214: 4848694.203 | AH214: -63976.69516 | AI214: 4959951.626 | AJ214: 5171053.593 | AK214: 5074042.639 | AL214: 5292808.806 | AM214: -421351.802
C215: Municipality: Funding (through debt ) | D215: USD | E215: 115317458.7 | F215: =-F116 -> 5618409.484 | G215: 24266948.1 | H215: 61551115.09 | I215: 23880986.02 | J215: 0 | K215: 0 | L215: 0 | M215: 0 | N215: 0 | O215: 0 | P215: 0 | Q215: 0 | R215: 0 | S215: 0 | T215: 0 | U215: 0 | V215: 0 | W215: 0 | X215: 0 | Y215: 0 | Z215: 0 | AA215: 0 | AB215: 0 | AC215: 0 | AD215: 0 | AE215: 0 | AF215: 0 | AG215: 0 | AH215: 0 | AI215: 0 | AJ215: 0 | AK215: 0 | AL215: 0 | AM215: 0
C216: Municipality: Funding (through subsidies) | D216: USD | E216: 0 | F216: =+F157 -> 0 | G216: =+G157 -> 0 | H216: =+H157 -> 0 | I216: 0 | J216: 0 | K216: 0 | L216: 0 | M216: 0 | N216: 0 | O216: 0 | P216: 0 | Q216: 0 | R216: 0 | S216: 0 | T216: 0 | U216: 0 | V216: 0 | W216: 0 | X216: 0 | Y216: 0 | Z216: 0 | AA216: 0 | AB216: 0 | AC216: 0 | AD216: 0 | AE216: 0 | AF216: 0 | AG216: 0 | AH216: 0 | AI216: 0 | AJ216: 0 | AK216: 0 | AL216: 0 | AM216: 0
C217: Debt: Funding | D217: USD | E217: 747815.1943 | F217: =F124 -> 37775.85886 | G217: 163160.9104 | H217: 413844.2103 | I217: 133034.2147 | J217: 0 | K217: 0 | L217: 0 | M217: 0 | N217: 0 | O217: 0 | P217: 0 | Q217: 0 | R217: 0 | S217: 0 | T217: 0 | U217: 0 | V217: 0 | W217: 0 | X217: 0 | Y217: 0 | Z217: 0 | AA217: 0 | AB217: 0 | AC217: 0 | AD217: 0 | AE217: 0 | AF217: 0 | AG217: 0 | AH217: 0 | AI217: 0 | AJ217: 0 | AK217: 0 | AL217: 0 | AM217: 0
C218: Equity: Funding | D218: USD | E218: 7005653.213 | F218: =-F119 -> 339982.7297 | G218: 1468448.193 | H218: 3724597.893 | I218: 1472624.397 | J218: 0 | K218: 0 | L218: 0 | M218: 0 | N218: 0 | O218: 0 | P218: 0 | Q218: 0 | R218: 0 | S218: 0 | T218: 0 | U218: 0 | V218: 0 | W218: 0 | X218: 0 | Y218: 0 | Z218: 0 | AA218: 0 | AB218: 0 | AC218: 0 | AD218: 0 | AE218: 0 | AF218: 0 | AG218: 0 | AH218: 0 | AI218: 0 | AJ218: 0 | AK218: 0 | AL218: 0 | AM218: 0
C219: CashFlow after Funding | D219: USD | E219: 41904625.63 | F219: =SUM(F214:F218) -> 0 | G219: 0 | H219: 0 | I219: 0 | J219: 140340.9929 | K219: 1456490.532 | L219: 1441183.693 | M219: 1454522.843 | N219: -2290084.99 | O219: 1687710.319 | P219: 1924056.557 | Q219: 1939164.597 | R219: 2195132.606 | S219: -4434773.273 | T219: -384129.9099 | U219: 2499227.68 | V219: 2838937.629 | W219: 2898901.86 | X219: -4486819.154 | Y219: -5916010.065 | Z219: -964040.3811 | AA219: 3806783.456 | AB219: 4139395.847 | AC219: -732753.7812 | AD219: 1756335.494 | AE219: 1137058.01 | AF219: 4936772.702 | AG219: 4848694.203 | AH219: -63976.69516 | AI219: 4959951.626 | AJ219: 5171053.593 | AK219: 5074042.639 | AL219: 5292808.806 | AM219: -421351.802
C220: Treasury: Funding | D220: USD | E220: 45998133.15 | F220: =IF(F78=1,0,-F115+IF(F191=1,IF(F219/F196>1.7,0,1.7*F196+IF(F219<0,-F219,0)),0)) -> 0 | G220: 0 | H220: 0 | I220: 0 | J220: 0 | K220: 0 | L220: 0 | M220: 0 | N220: 2424668.833 | O220: 0 | P220: 0 | Q220: 0 | R220: 0 | S220: 6858134.761 | T220: 3387420.165 | U220: 0 | V220: 0 | W220: 0 | X220: 7586808.762 | Y220: 15044030.36 | Z220: 4297393.007 | AA220: 0 | AB220: 0 | AC220: 0 | AD220: 2839973.333 | AE220: 3559703.926 | AF220: 0 | AG220: 0 | AH220: 0 | AI220: 0 | AJ220: 0 | AK220: 0 | AL220: 0 | AM220: 0
C221: CashFlow Available for Debt Service (CFADS) | D221: USD | E221: 87902758.78 | F221: =SUM(F219:F220) -> 0 | G221: =SUM(G219:G220) -> 0 | H221: 0 | I221: 0 | J221: 140340.9929 | K221: 1456490.532 | L221: 1441183.693 | M221: 1454522.843 | N221: 134583.8434 | O221: 1687710.319 | P221: 1924056.557 | Q221: 1939164.597 | R221: 2195132.606 | S221: 2423361.487 | T221: 3003290.255 | U221: 2499227.68 | V221: 2838937.629 | W221: 2898901.86 | X221: 3099989.608 | Y221: 9128020.293 | Z221: 3333352.626 | AA221: 3806783.456 | AB221: 4139395.847 | AC221: -732753.7812 | AD221: 4596308.826 | AE221: 4696761.936 | AF221: 4936772.702 | AG221: 4848694.203 | AH221: -63976.69516 | AI221: 4959951.626 | AJ221: 5171053.593 | AK221: 5074042.639 | AL221: 5292808.806 | AM221: -421351.802
C222: Interests | D222: USD | E222: -519214.8819 | F222: =-F197 -> 0 | G222: =-G197 -> 0 | H222: 0 | I222: 0 | J222: =J197 -> -52347.0636 | K222: =K197 -> -50613.03878 | L222: -48464.65211 | M222: -46315.49009 | N222: -44015.88672 | O222: -41673.06711 | P222: -38925.26156 | Q222: -36107.94833 | R222: -33093.42318 | S222: -29952.51839 | T222: -26418.64279 | U222: -22725.42749 | V222: -18773.68712 | W222: -14586.54226 | X222: -10021.85381 | Y222: -5180.37854 | Z222: 0 | AA222: 0 | AB222: 0 | AC222: 0 | AD222: 0 | AE222: 0 | AF222: 0 | AG222: 0 | AH222: 0 | AI222: 0 | AJ222: 0 | AK222: 0 | AL222: 0 | AM222: 0
C223: Principal Repayment | D223: USD | E223: -747815.1943 | F223: =F198 -> 0 | G223: =G198 -> 0 | H223: =H198 -> 0 | I223: 0 | J223: =-J198 -> -26814.8938 | K223: =-K198 -> -28648.12748 | L223: -30702.31462 | M223: -32851.47664 | N223: -35151.08 | O223: -37572.13668 | P223: -40247.33178 | Q223: -43064.645 | R223: -46079.17015 | S223: -49274.83543 | T223: -52760.21854 | U223: -56453.43383 | V223: -60405.1742 | W223: -64621.016 | X223: -69163.93244 | Y223: -74005.40771 | Z223: 0 | AA223: 0 | AB223: 0 | AC223: 0 | AD223: 0 | AE223: 0 | AF223: 0 | AG223: 0 | AH223: 0 | AI223: 0 | AJ223: 0 | AK223: 0 | AL223: 0 | AM223: 0
C224: Cashflow available for Debt Service reserve Account (DSRA) | D224: USD | E224: 86635728.7 | F224: =SUM(F221:F223) -> 0 | G224: =SUM(G221:G223) -> 0 | H224: 0 | I224: 0 | J224: 61179.03551 | K224: 1377229.366 | L224: 1362016.726 | M224: 1375355.877 | N224: 55416.87671 | O224: 1608465.115 | P224: 1844883.964 | Q224: 1859992.004 | R224: 2115960.012 | S224: 2344134.134 | T224: 2924111.393 | U224: 2420048.819 | V224: 2759758.767 | W224: 2819694.302 | X224: 3020803.822 | Y224: 9048834.507 | Z224: 3333352.626 | AA224: 3806783.456 | AB224: 4139395.847 | AC224: -732753.7812 | AD224: 4596308.826 | AE224: 4696761.936 | AF224: 4936772.702 | AG224: 4848694.203 | AH224: -63976.69516 | AI224: 4959951.626 | AJ224: 5171053.593 | AK224: 5074042.639 | AL224: 5292808.806 | AM224: -421351.802
C225: Treasury: Deduction | D225: USD | E225: -43048367.38 | F225: =IF(F231<$E$220,IF(F224>0,-F224*$E$28,0),0) -> 0 | G225: 0 | H225: 0 | I225: 0 | J225: -29977.7274 | K225: -674842.3894 | L225: -667388.1959 | M225: -673924.3795 | N225: -27154.26959 | O225: -788147.9066 | P225: -903993.1422 | Q225: -911396.0819 | R225: -1036820.406 | S225: -1148625.726 | T225: -1432814.583 | U225: -1185823.921 | V225: -1352281.796 | W225: -1381650.208 | X225: -1480193.873 | Y225: -4433928.909 | Z225: -1633342.787 | AA225: -1865323.893 | AB225: -2028303.965 | AC225: 0 | AD225: -2252191.325 | AE225: -2301413.349 | AF225: -2419018.624 | AG225: -2375860.16 | AH225: 0 | AI225: -2430376.297 | AJ225: -2533816.261 | AK225: -2486280.893 | AL225: -2593476.315 | AM225: 0
C226: Cashflow available to Equity | D226: USD | E226: 43587361.32 | F226: =F224+F225 -> 0 | G226: =G224+G225 -> 0 | H226: =H224+H225 -> 0 | I226: 0 | J226: 31201.30811 | K226: 702386.9767 | L226: 694628.5304 | M226: 701431.497 | N226: 28262.60712 | O226: 820317.2089 | P226: 940890.8215 | Q226: 948595.922 | R226: 1079139.606 | S226: 1195508.408 | T226: 1491296.811 | U226: 1234224.898 | V226: 1407476.971 | W226: 1438044.094 | X226: 1540609.949 | Y226: 4614905.599 | Z226: 1700009.839 | AA226: 1941459.563 | AB226: 2111091.882 | AC226: -732753.7812 | AD226: 2344117.501 | AE226: 2395348.587 | AF226: 2517754.078 | AG226: 2472834.044 | AH226: -63976.69516 | AI226: 2529575.329 | AJ226: 2637237.333 | AK226: 2587761.746 | AL226: 2699332.491 | AM226: -421351.802
C227: Distributions to Equity | D227: USD | E227: -44805443.6 | F227: =-MAX(F226,0)*F79 -> 0 | G227: 0 | H227: 0 | I227: 0 | J227: -31201.30811 | K227: -702386.9767 | L227: -694628.5304 | M227: -701431.497 | N227: -28262.60712 | O227: -820317.2089 | P227: -940890.8215 | Q227: -948595.922 | R227: -1079139.606 | S227: -1195508.408 | T227: -1491296.811 | U227: -1234224.898 | V227: -1407476.971 | W227: -1438044.094 | X227: -1540609.949 | Y227: -4614905.599 | Z227: -1700009.839 | AA227: -1941459.563 | AB227: -2111091.882 | AC227: 0 | AD227: -2344117.501 | AE227: -2395348.587 | AF227: -2517754.078 | AG227: -2472834.044 | AH227: 0 | AI227: -2529575.329 | AJ227: -2637237.333 | AK227: -2587761.746 | AL227: -2699332.491 | AM227: 0
C228: Treasury: Add back | D228: USD | E228: -2949765.765 | F228: =-F225-F220 -> 0 | G228: 0 | H228: 0 | I228: 0 | J228: =-J225-J220 -> 29977.7274 | K228: =-K225-K220 -> 674842.3894 | L228: 667388.1959 | M228: 673924.3795 | N228: -2397514.564 | O228: 788147.9066 | P228: 903993.1422 | Q228: 911396.0819 | R228: 1036820.406 | S228: -5709509.035 | T228: -1954605.582 | U228: 1185823.921 | V228: 1352281.796 | W228: 1381650.208 | X228: -6106614.89 | Y228: -10610101.45 | Z228: -2664050.22 | AA228: 1865323.893 | AB228: 2028303.965 | AC228: 0 | AD228: -587782.0078 | AE228: -1258290.577 | AF228: 2419018.624 | AG228: 2375860.16 | AH228: 0 | AI228: 2430376.297 | AJ228: 2533816.261 | AK228: 2486280.893 | AL228: 2593476.315 | AM228: 0
C229: Net Cashflow | D229: USD | E229: 38980519.34 | F229: =F224+F227+F228-F213 -> 0 | G229: =G224+G227+G228-G213 -> 0 | H229: 0 | I229: 100000 | J229: =J224+J227+J228-J213 -> 59955.4548 | K229: =K224+K227+K228-K213 -> 1349684.779 | L229: =L224+L227+L228-L213 -> 1334776.392 | M229: =M224+M227+M228-M213 -> 1347848.759 | N229: =N224+N227+N228-N213 -> -2370360.294 | O229: =O224+O227+O228-O213 -> 1576295.813 | P229: =P224+P227+P228-P213 -> 1807986.284 | Q229: =Q224+Q227+Q228-Q213 -> 1822792.164 | R229: =R224+R227+R228-R213 -> 2073640.812 | S229: =S224+S227+S228-S213 -> -4560883.31 | T229: =T224+T227+T228-T213 -> -521790.9991 | U229: =U224+U227+U228-U213 -> 2371647.842 | V229: =V224+V227+V228-V213 -> 2704563.592 | W229: =W224+W227+W228-W213 -> 2763300.416 | X229: =X224+X227+X228-X213 -> -4626421.017 | Y229: =Y224+Y227+Y228-Y213 -> -6176172.542 | Z229: =Z224+Z227+Z228-Z213 -> -1030707.434 | AA229: =AA224+AA227+AA228-AA213 -> 3730647.787 | AB229: =AB224+AB227+AB228-AB213 -> 4056607.93 | AC229: =AC224+AC227+AC228-AC213 -> -732753.7812 | AD229: =AD224+AD227+AD228-AD213 -> 1664409.317 | AE229: =AE224+AE227+AE228-AE213 -> 1043122.772 | AF229: =AF224+AF227+AF228-AF213 -> 4838037.248 | AG229: =AG224+AG227+AG228-AG213 -> 4751720.319 | AH229: =AH224+AH227+AH228-AH213 -> -63976.69516 | AI229: =AI224+AI227+AI228-AI213 -> 4860752.593 | AJ229: =AJ224+AJ227+AJ228-AJ213 -> 5067632.522 | AK229: =AK224+AK227+AK228-AK213 -> 4972561.786 | AL229: =AL224+AL227+AL228-AL213 -> 5186952.63 | AM229: =AM224+AM227+AM228-AM213 -> -421351.802
C231: Cash Balance B/f | F231: =E232 -> 0 | G231: =F232 -> 0 | H231: 0 | I231: 0 | J231: 100000 | K231: =J232 -> 159955.4548 | L231: =K232 -> 1509640.234 | M231: =L232 -> 2844416.625 | N231: =M232 -> 4192265.384 | O231: =N232 -> 1821905.09 | P231: =O232 -> 3398200.904 | Q231: =P232 -> 5206187.188 | R231: =Q232 -> 7028979.352 | S231: =R232 -> 9102620.164 | T231: =S232 -> 4541736.854 | U231: =T232 -> 4019945.855 | V231: =U232 -> 6391593.697 | W231: =V232 -> 9096157.289 | X231: =W232 -> 11859457.7 | Y231: =X232 -> 7233036.688 | Z231: =Y232 -> 1056864.146 | AA231: =Z232 -> 26156.71236 | AB231: =AA232 -> 3756804.499 | AC231: =AB232 -> 7813412.429 | AD231: =AC232 -> 7080658.648 | AE231: =AD232 -> 8745067.965 | AF231: =AE232 -> 9788190.736 | AG231: =AF232 -> 14626227.98 | AH231: =AG232 -> 19377948.3 | AI231: =AH232 -> 19313971.61 | AJ231: =AI232 -> 24174724.2 | AK231: =AJ232 -> 29242356.72 | AL231: =AK232 -> 34214918.51 | AM231: =AL232 -> 39401871.14
C232: Cash Balance C/f | D232: USD | F232: =F229+F231 -> 0 | G232: =G229+G231 -> 0 | H232: 0 | I232: 100000 | J232: =J229+J231 -> 159955.4548 | K232: =K229+K231 -> 1509640.234 | L232: 2844416.625 | M232: 4192265.384 | N232: 1821905.09 | O232: 3398200.904 | P232: 5206187.188 | Q232: 7028979.352 | R232: 9102620.164 | S232: 4541736.854 | T232: 4019945.855 | U232: 6391593.697 | V232: 9096157.289 | W232: 11859457.7 | X232: 7233036.688 | Y232: 1056864.146 | Z232: 26156.71236 | AA232: 3756804.499 | AB232: 7813412.429 | AC232: 7080658.648 | AD232: 8745067.965 | AE232: 9788190.736 | AF232: 14626227.98 | AG232: 19377948.3 | AH232: 19313971.61 | AI232: 24174724.2 | AJ232: 29242356.72 | AK232: 34214918.51 | AL232: 39401871.14 | AM232: 38980519.34
C234: Close out: Distribution of remaining treasury to Equity | D234: USD | E234: =SUM(F234:AM234) -> -38980519.34 | F234: 0 | G234: 0 | H234: 0 | I234: 0 | J234: 0 | K234: 0 | L234: 0 | M234: 0 | N234: 0 | O234: 0 | P234: 0 | Q234: 0 | R234: 0 | S234: 0 | T234: 0 | U234: 0 | V234: 0 | W234: 0 | X234: 0 | Y234: 0 | Z234: 0 | AA234: 0 | AB234: 0 | AC234: 0 | AD234: 0 | AE234: 0 | AF234: 0 | AG234: 0 | AH234: 0 | AI234: 0 | AJ234: 0 | AK234: 0 | AL234: 0 | AM234: =-AM232 -> -38980519.34
C235: Close out: Asset transfer to municipality | D235: USD | E235: 0 | F235: 0 | G235: 0 | H235: 0 | I235: 0 | J235: 0 | K235: 0 | L235: 0 | M235: 0 | N235: 0 | O235: 0 | P235: 0 | Q235: 0 | R235: 0 | S235: 0 | T235: 0 | U235: 0 | V235: 0 | W235: 0 | X235: 0 | Y235: 0 | Z235: 0 | AA235: 0 | AB235: 0 | AC235: 0 | AD235: 0 | AE235: 0 | AF235: 0 | AG235: 0 | AH235: 0 | AI235: 0 | AJ235: 0 | AK235: 0 | AL235: 0 | AM235: 0
C238: Municipality Cashflow Waterfall
C240: =C157 -> Municipal direct subsidies (if any) | D240: USD | E240: =E157 -> 0 | F240: 0 | G240: 0 | H240: 0 | I240: 0 | J240: 0 | K240: 0 | L240: 0 | M240: 0 | N240: 0 | O240: 0 | P240: 0 | Q240: 0 | R240: 0 | S240: 0 | T240: 0 | U240: 0 | V240: 0 | W240: 0 | X240: 0 | Y240: 0 | Z240: 0 | AA240: 0 | AB240: 0 | AC240: 0 | AD240: 0 | AE240: 0 | AF240: 0 | AG240: 0 | AH240: 0 | AI240: 0 | AJ240: 0 | AK240: 0 | AL240: 0 | AM240: 0
C241: Annuity payment - Interest | D241: USD | E241: =-E203 -> 69894750.98 | F241: =-F203 -> 0 | G241: =-G203 -> 394403.1326 | H241: =-H203 -> 2077895.903 | I241: 6303784.872 | J241: 7695912.94 | K241: 7334529.585 | L241: 6905425.205 | M241: 6467918.838 | N241: 5999787.024 | O241: 5514468.27 | P241: 4963304.621 | Q241: 4389778.792 | R241: 3776106.155 | S241: 3128316.147 | T241: 2417088.972 | U241: 1665249.421 | V241: 860781.1019 | W241: 0 | X241: 0 | Y241: 0 | Z241: 0 | AA241: 0 | AB241: 0 | AC241: 0 | AD241: 0 | AE241: 0 | AF241: 0 | AG241: 0 | AH241: 0 | AI241: 0 | AJ241: 0 | AK241: 0 | AL241: 0 | AM241: 0
C242: Annuity payment - Principal | D242: USD | E242: =E204 -> 115317458.7 | F242: =F204 -> 0 | G242: =G204 -> 201130.4028 | H242: 1181272.68 | I242: 3993442.189 | J242: 5458694.352 | K242: 5833987.574 | L242: 6250090.965 | M242: 6687597.333 | N242: 7155729.146 | O242: 7651162.322 | P242: 8193226.129 | Q242: 8766751.958 | R242: 9380424.595 | S242: 10034106.59 | T242: 10740565.01 | U242: 11492404.56 | V242: 12296872.88 | W242: 0 | X242: 0 | Y242: 0 | Z242: 0 | AA242: 0 | AB242: 0 | AC242: 0 | AD242: 0 | AE242: 0 | AF242: 0 | AG242: 0 | AH242: 0 | AI242: 0 | AJ242: 0 | AK242: 0 | AL242: 0 | AM242: 0
C243: =C235 -> Close out: Asset transfer to municipality | D243: USD | E243: =-E235 -> 0 | F243: =-F235 -> 0 | G243: =-G235 -> 0 | H243: 0 | I243: 0 | J243: 0 | K243: 0 | L243: 0 | M243: 0 | N243: 0 | O243: 0 | P243: 0 | Q243: 0 | R243: 0 | S243: 0 | T243: 0 | U243: 0 | V243: 0 | W243: 0 | X243: 0 | Y243: 0 | Z243: 0 | AA243: 0 | AB243: 0 | AC243: 0 | AD243: 0 | AE243: 0 | AF243: 0 | AG243: 0 | AH243: 0 | AI243: 0 | AJ243: 0 | AK243: 0 | AL243: 0 | AM243: 0
C244: TOTAL | D244: USD | E244: =-E236 -> 0 | F244: =SUM(F240:F243) -> 0 | G244: =SUM(G240:G243) -> 595533.5354 | H244: 3259168.583 | I244: 10297227.06 | J244: 13154607.29 | K244: 13168517.16 | L244: 13155516.17 | M244: 13155516.17 | N244: 13155516.17 | O244: 13165630.59 | P244: 13156530.75 | Q244: 13156530.75 | R244: 13156530.75 | S244: 13162422.74 | T244: 13157653.99 | U244: 13157653.99 | V244: 13157653.99 | W244: 0 | X244: 0 | Y244: 0 | Z244: 0 | AA244: 0 | AB244: 0 | AC244: 0 | AD244: 0 | AE244: 0 | AF244: 0 | AG244: 0 | AH244: 0 | AI244: 0 | AJ244: 0 | AK244: 0 | AL244: 0 | AM244: 0
C246: Project Return
C248: Date | F248: =F77 -> 2015-12-31 | G248: 2016-12-31 | H248: 2017-12-31 | I248: 2018-12-31 | J248: 2019-12-31 | K248: 2020-12-31 | L248: 2021-12-31 | M248: 2022-12-31 | N248: 2023-12-31 | O248: 2024-12-31 | P248: 2025-12-31 | Q248: 2026-12-31 | R248: 2027-12-31 | S248: 2028-12-31 | T248: 2029-12-31 | U248: 2030-12-31 | V248: 2031-12-31 | W248: 2032-12-31 | X248: 2033-12-31 | Y248: 2034-12-31 | Z248: 2035-12-31 | AA248: 2036-12-31 | AB248: 2037-12-31 | AC248: 2038-12-31 | AD248: 2039-12-31 | AE248: 2040-12-31 | AF248: 2041-12-31 | AG248: 2042-12-31 | AH248: 2043-12-31 | AI248: 2044-12-31 | AJ248: 2045-12-31 | AK248: 2046-12-31 | AL248: 2047-12-31 | AM248: 2048-12-31
C249: =C214 -> Cashflow before Funding | D249: USD | E249: =SUM(F249:AM249) -> -81166301.48 | F249: =F214 -> -5996168.073 | G249: -25898557.2 | H249: -65689557.2 | I249: -25486644.63 | J249: 140340.9929 | K249: 1456490.532 | L249: 1441183.693 | M249: 1454522.843 | N249: -2290084.99 | O249: 1687710.319 | P249: 1924056.557 | Q249: 1939164.597 | R249: 2195132.606 | S249: -4434773.273 | T249: -384129.9099 | U249: 2499227.68 | V249: 2838937.629 | W249: 2898901.86 | X249: -4486819.154 | Y249: -5916010.065 | Z249: -964040.3811 | AA249: 3806783.456 | AB249: 4139395.847 | AC249: -732753.7812 | AD249: 1756335.494 | AE249: 1137058.01 | AF249: 4936772.702 | AG249: 4848694.203 | AH249: -63976.69516 | AI249: 4959951.626 | AJ249: 5171053.593 | AK249: 5074042.639 | AL249: 5292808.806 | AM249: -421351.802
C250: Residual value | D250: USD | E250: =SUM(F250:AM250) -> 0 | F250: =-F235 -> 0 | G250: =-G235 -> 0 | H250: 0 | I250: 0 | J250: 0 | K250: 0 | L250: 0 | M250: 0 | N250: 0 | O250: 0 | P250: 0 | Q250: 0 | R250: 0 | S250: 0 | T250: 0 | U250: 0 | V250: 0 | W250: 0 | X250: 0 | Y250: 0 | Z250: 0 | AA250: 0 | AB250: 0 | AC250: 0 | AD250: 0 | AE250: 0 | AF250: 0 | AG250: 0 | AH250: 0 | AI250: 0 | AJ250: 0 | AK250: 0 | AL250: 0 | AM250: 0
C251: Cashflow for Project Return calculation | D251: USD | F251: =SUM(F249:F250) -> -5996168.073 | G251: =SUM(G249:G250) -> -25898557.2 | H251: -65689557.2 | I251: -25486644.63 | J251: 140340.9929 | K251: 1456490.532 | L251: 1441183.693 | M251: 1454522.843 | N251: -2290084.99 | O251: 1687710.319 | P251: 1924056.557 | Q251: 1939164.597 | R251: 2195132.606 | S251: -4434773.273 | T251: -384129.9099 | U251: 2499227.68 | V251: 2838937.629 | W251: 2898901.86 | X251: -4486819.154 | Y251: -5916010.065 | Z251: -964040.3811 | AA251: 3806783.456 | AB251: 4139395.847 | AC251: -732753.7812 | AD251: 1756335.494 | AE251: 1137058.01 | AF251: 4936772.702 | AG251: 4848694.203 | AH251: -63976.69516 | AI251: 4959951.626 | AJ251: 5171053.593 | AK251: 5074042.639 | AL251: 5292808.806 | AM251: -421351.802
C254: Discount Factor (WACC) | D254: % | E254: =E29 -> 0.13
C255: NPV project @ WACC | D255: USD | E255: =NPV(E254,F251:AM251) -> -83168715.77
C257: IRR Project | D257: % | E257: =IRR(F251:AM251) -> -0.043543921
C258: Check: NPV @ IRR | D258: USD | E258: =NPV(E257,F251:AM251) -> -7.059486383e-09 | F258: =IF(ROUND(E258,3)=0,0,1) -> 0
C261: Equity Return
C263: Date | F263: =F248 -> 2015-12-31 | G263: =G248 -> 2016-12-31 | H263: 2017-12-31 | I263: 2018-12-31 | J263: 2019-12-31 | K263: 2020-12-31 | L263: 2021-12-31 | M263: 2022-12-31 | N263: 2023-12-31 | O263: 2024-12-31 | P263: 2025-12-31 | Q263: 2026-12-31 | R263: 2027-12-31 | S263: 2028-12-31 | T263: 2029-12-31 | U263: 2030-12-31 | V263: 2031-12-31 | W263: 2032-12-31 | X263: 2033-12-31 | Y263: 2034-12-31 | Z263: 2035-12-31 | AA263: 2036-12-31 | AB263: 2037-12-31 | AC263: 2038-12-31 | AD263: 2039-12-31 | AE263: 2040-12-31 | AF263: 2041-12-31 | AG263: 2042-12-31 | AH263: 2043-12-31 | AI263: 2044-12-31 | AJ263: 2045-12-31 | AK263: 2046-12-31 | AL263: 2047-12-31 | AM263: 2048-12-31
C264: =C218 -> Equity: Funding | D264: USD | E264: =SUM(F264:AM264) -> -7005653.213 | F264: =-F218 -> -339982.7297 | G264: -1468448.193 | H264: -3724597.893 | I264: -1472624.397 | J264: 0 | K264: 0 | L264: 0 | M264: 0 | N264: 0 | O264: 0 | P264: 0 | Q264: 0 | R264: 0 | S264: 0 | T264: 0 | U264: 0 | V264: 0 | W264: 0 | X264: 0 | Y264: 0 | Z264: 0 | AA264: 0 | AB264: 0 | AC264: 0 | AD264: 0 | AE264: 0 | AF264: 0 | AG264: 0 | AH264: 0 | AI264: 0 | AJ264: 0 | AK264: 0 | AL264: 0 | AM264: 0
C265: Distributions to Equity | D265: USD | E265: =SUM(F265:AM265) -> 44805443.6 | F265: =-F227 -> 0 | G265: 0 | H265: 0 | I265: 0 | J265: 31201.30811 | K265: 702386.9767 | L265: 694628.5304 | M265: 701431.497 | N265: 28262.60712 | O265: 820317.2089 | P265: 940890.8215 | Q265: 948595.922 | R265: 1079139.606 | S265: 1195508.408 | T265: 1491296.811 | U265: 1234224.898 | V265: 1407476.971 | W265: 1438044.094 | X265: 1540609.949 | Y265: 4614905.599 | Z265: 1700009.839 | AA265: 1941459.563 | AB265: 2111091.882 | AC265: 0 | AD265: 2344117.501 | AE265: 2395348.587 | AF265: 2517754.078 | AG265: 2472834.044 | AH265: 0 | AI265: 2529575.329 | AJ265: 2637237.333 | AK265: 2587761.746 | AL265: 2699332.491 | AM265: 0
C266: Close out: Distribution of remaining treasury to Equity | D266: USD | E266: =SUM(F266:AM266) -> 38980519.34 | F266: =-F234 -> 0 | G266: 0 | H266: 0 | I266: 0 | J266: 0 | K266: 0 | L266: 0 | M266: 0 | N266: 0 | O266: 0 | P266: 0 | Q266: 0 | R266: 0 | S266: 0 | T266: 0 | U266: 0 | V266: 0 | W266: 0 | X266: 0 | Y266: 0 | Z266: 0 | AA266: 0 | AB266: 0 | AC266: 0 | AD266: 0 | AE266: 0 | AF266: 0 | AG266: 0 | AH266: 0 | AI266: 0 | AJ266: 0 | AK266: 0 | AL266: 0 | AM266: 38980519.34
C267: Close out: Asset transfer to municipality | D267: USD | E267: =SUM(F267:AM267) -> 0 | F267: =-F235 -> 0 | G267: 0 | H267: 0 | I267: 0 | J267: 0 | K267: 0 | L267: 0 | M267: 0 | N267: 0 | O267: 0 | P267: 0 | Q267: 0 | R267: 0 | S267: 0 | T267: 0 | U267: 0 | V267: 0 | W267: 0 | X267: 0 | Y267: 0 | Z267: 0 | AA267: 0 | AB267: 0 | AC267: 0 | AD267: 0 | AE267: 0 | AF267: 0 | AG267: 0 | AH267: 0 | AI267: 0 | AJ267: 0 | AK267: 0 | AL267: 0 | AM267: 0
... 33 more rows

Sheet Balance_SPV (hidden)
B2: Usos y recursos del concesionario (flujos de caja)
B3: Usos | C3: USD 2015 | D3: % | E3: Recursos | F3: USD 2015 | G3: %
B4: Durante la construccion | E4: Durante la construccion
B6: Inversion inicial | C6: =NPV(0,'Project Finance Model'!$F$109:$AM$109) -> 122903696.9 | D6: =C6/C$21 -> 0.2892040565 | E6: Deuda privada | F6: =-NPV(0,'Project Finance Model'!$F$117:$AM$117) -> 747815.1943 | G6: =F6/F$21 -> 0.001759680084
B7: Interes durante la construccion | C7: =NPV(0,'Project Finance Model'!$F$112:$AM$112) -> 59752.04576 | D7: =C7/C$21 -> 0.0001406022313 | E7: Aportacion de capital privado | F7: =-NPV(0,'Project Finance Model'!$F$119:$AM$119) -> 7005653.213 | G7: =F7/F$21 -> 0.01648496651
B8: Upfront fee | C8: =NPV(0,'Project Finance Model'!$F$113:$AM$113) -> 7478.151943 | D8: =C8/C$21 -> 1.759680084e-05 | E8: Aportacion municipal | F8: =-NPV(0,'Project Finance Model'!$F$116:$AM$116) -> 115317458.7 | G8: =F8/F$21 -> 0.2713529184
B11: Durante la operacion | E11: Durante la operacion
B13: Operacion y mantenimiento | C13: =-NPV(0,'Project Finance Model'!$F$209:$AM$209) -> 180278885.4 | D13: =C13/C$21 -> 0.4242133172 | E13: Deuda | F13: 0 | G13: =F13/F$21 -> 0
B14: Renovaciones | C14: =NPV(0,'Project Finance Model'!$F$106:$AM$106) -> 27813209.67 | D14: 0.0654471205 | E14: Aportacion de capital privado | F14: 0 | G14: =F14/F$21 -> 0
B15: Impuesto a la renta | C15: =-NPV(0,'Project Finance Model'!$F$211:$AM$211) -> 5906463.176 | D15: 0.01389846809 | E15: Aportacion municipal | F15: =NPV(0,'Project Finance Model'!$F$157:$AM$157) -> 0 | G15: =F15/F$21 -> 0
B16: Intereses | C16: =-NPV(0,'Project Finance Model'!$F$222:$AM$222) -> 519214.8819 | D16: 0.001221761866 | E16: Autofinanciamento sobre Tesoreria | F16: ='Project Finance Model'!E220 -> 45998133.15 | G16: =F16/F$21 -> 0.1082379703
B17: Principal de la deuda | C17: =-NPV(0,'Project Finance Model'!$F$223:$AM$223) -> 747815.1943 | D17: 0.001759680084 | E17: Ingresos de operacion | F17: =NPV(0,'Project Finance Model'!$F$208:$AM$208) -> 255903183.9 | G17: =F17/F$21 -> 0.6021644647
B18: Constitucion de la Tesoreria | C18: ='Project Finance Model'!E229-'Project Finance Model'!E228 -> 41930285.1 | D18: 0.09866593802
B19: Dividendo a privados (Equity) | C19: =-NPV(0,'Project Finance Model'!$F$227:$AM$227) -> 44805443.6 | D19: 0.1054314587
B21: Total | C21: =SUM(C6:C19) -> 424972244.1 | D21: =SUM(D6:D19) -> 1 | E21: Total | F21: =SUM(F6:F19) -> 424972244.1 | G21: =SUM(G6:G19) -> 1
B107: Financement des renouvellements d'équipement sur la trésorerie du SPV. Déblocage de fonds de la part du SPV pour financer les renouvellements d'équipement.
B108: Part de la dette municipale dans le financement de la construction
B109: Part de la dette privée dans le financement de la construction
B111: Part du capital privé dans le financement de la construction
B143: Calcul des intérêts à rembourser par le SPV durant la construction
B144: Calcul des intérêts à rembourser par le maire durant la construction
B175: Calcul des intérêts à rembourser par le SPV durant l'exploitation
B176: Calcul des intérêts à rembourser par le maire durant l'exploitation
B180: Hypothèse: le remboursement de la dette du SPV commence à la fin de la première année de construction
B181: Hypothèse: le remboursement de la dette du SPV commence à la fin de la première année d'exploitation

Sheet Balance_Municipality (hidden)
B2: Aportacion municipal (flujos de caja)
B3: Total | C3: Pago de la deuda - Intereses | D3: Pago de la deuda - Principal | E3: Subsidios Municipal | F3: Transferencia de activos
B4: =C4+D4+E4+F4 -> 185212209.7 | C4: ='Project Finance Model'!E241 -> 69894750.98 | D4: ='Project Finance Model'!E242 -> 115317458.7 | E4: =SUM('Project Finance Model'!$F$157:$AM$157) -> 0 | F4: =SUM('Project Finance Model'!$F$243:$AM$243) -> 0
